{"text_format":"1","workbook":"xlsx","n_sheets":3,"sheets":["OPEN DRAW","Youth draw","select draw"],"not_rendered":{"charts":0,"images":0,"macros":1,"external_links":0,"defined_names":1,"comments":0,"pivot_tables":0},"unopened":[],"bounds":{"document_bytes":16777216,"sheet_cells":100000,"rows_first":2000,"rows_last":500,"rows_between":2000,"halvings":0,"cell_chars":16384,"cell_head_chars":4096},"cells_cut":0,"cells_raw":0,"read":"whole","date_system":"1900"}

{"sheet":"OPEN DRAW","index":0,"n_rows":352,"n_cols":22,"rows_kept":352,"cut":false,"hidden":false,"merged":[]}
["Open",null,null,null,null,null,null,"# entries",null,"fee",null,"1D",null,"2D",null,"3D",null,"4D"]
["draw","   Name",null,"   Horse",null,"   time",null,{"$f":"350 - COUNTBLANK('OPEN DRAW'!B3:B352)","v":40},null,{"$f":"SUM(#REF!)","v":{"$error":"#REF!"}},null,{"$f":"MIN(F3:F352)","v":14.055},null,{"$f":"SUM(L2+0.5)","v":14.555},null,{"$f":"SUM(L2+1)","v":15.055},null,{"$f":"SUM(P2+1)","v":16.055},null,100,null,{"$f":"COUNTA(B3:B150)","v":40}]
[1,"Kc Peters",null,"Raise the Crime",null,14.055,null,null,null,null,null,{"$f":"IF(F3 <$N$2,F3,\" \")","v":14.055},null,{"$f":"IF(F3 <$P$2,IF(F3 >=$N$2,F3,\" \"),\"\")","v":" "},null,{"$f":"IF(F3 <$R$2,IF(F3 >=$P$2,F3,\" \"),\"\")","v":" "},null,{"$f":"IF(F3 <$T$2,IF(F3 >=$R$2,F3,\" \"),\"\")","v":" "}]
[2,"Dawn Vandersteen",null,"Running Flit Bar",null,14.167999999999999,null,null,null,null,null,{"$f":"IF(F4 <$N$2,F4,\" \")","v":14.167999999999999},null,{"$f":"IF(F4 <$P$2,IF(F4 >=$N$2,F4,\" \"),\"\")","v":" "},null," ",null,{"$f":"IF(F4 <$T$2,IF(F4 >=$R$2,F4,\" \"),\"\")","v":" "}]
[3,"Christine King",null,"Crimson Memories",null,14.26,null,null,null,null,null,14.26,null," ",null," ",null," "]
[4,"Megan Spindler",null,"Princess Goldmine",null,14.260999999999999,null,null,null,null,null,14.260999999999999,null," ",null," ",null," "]
[5,"Kelsey Wheeler",null,"Flits Mighty Bar",null,14.336,null,null,null,null,null,14.336,null," ",null," ",null," "]
[6,"Mackenzie Shauf",null,"Sarge",null,14.356999999999999,null,null,null,null,null,14.356999999999999,null," ",null," ",null," "]
[7,"Twyla Salmon",null,"On A Rare Bonanza",null,14.362,null,null,null,null,null,14.362,null," ",null," ",null," "]
[8,"Kylie Gompf",null,"Arco Bar",null,14.38,null,null,null,null,null,14.38,null," ",null," ",null," "]
[9,"Fara Fogg",null,"Turn Pike",null,14.420999999999999,null,null,null,null,null,14.420999999999999,null," ",null," ",null," "]
[10,"Sharra Sage",null,"Alabama Gunner",null,14.423,null,null,null,null,null,14.423,null," ",null," ",null," "]
[11,"Kathleen Schiml",null,"EZ Glory Holly",null,14.477,null,null,null,null,null,14.477,null," ",null," ",null," "]
[12,"Jamie McDonald",null,"Okie Cash",null,14.845000000000001,null,null,null,null,null," ",null,14.845000000000001,null," ",null," "]
[13,"Shannon Stein",null,"RD Flyin Graphic",null,14.98,null,null,null,null,null," ",null,14.98,null," ",null," "]
[14,"Marla Grad",null,"Ooh Whata Frenchman",null,14.981,null,null,null,null,null," ",null,14.981,null," ",null," "]
[15,"Collen Ahntholz",null,"BDB Cashiers Susie",null,15.015000000000001,null,null,null,null,null," ",null,15.015000000000001,null," ",null," "]
[16,"Sydney Hore",null,"DF True Blue Frost",null,15.029,null,null,null,null,null," ",null,15.029,null," ",null," "]
[17,"Jerri-Lyn Marshall",null,"Snooze",null,15.032,null,null,null,null,null," ",null,15.032,null," ",null," "]
[18,"Debbie Champagne",null,"Wilson",null,15.061999999999999,null,null,null,null,null," ",null,"",null,15.061999999999999,null," "]
[19,"Carla Fouillard",null,"Vegas",null,15.08,null,null,null,null,null," ",null,"",null,15.08,null," "]
[20,"Sara Walker",null,"Chicklet",null,15.128,null,null,null,null,null," ",null,"",null,15.128,null," "]
[21,"Cayla Holbrook",null,"Tic Tak",null,15.151999999999999,null,null,null,null,null," ",null,"",null,15.151999999999999,null," "]
[22,"Rhonda Knight",null,"Halo",null,15.173999999999999,null,null,null,null,null," ",null,"",null,15.173999999999999,null," "]
[23,"Kim Jackson",null,"Magpie",null,15.21,null,null,null,null,null," ",null,"",null,15.21,null," "]
[24,"Adele Sobey",null,"Running Mega Jac",null,15.343,null,null,null,null,null," ",null,"",null,15.343,null," "]
[25,"Jamie McDonald",null,"Cosmic Shindig",null,15.37,null,null,null,null,null," ",null,"",null,15.37,null," "]
[26,"Meagan Eberts",null,"Jackys Sprat",null,15.648,null,null,null,null,null," ",null,"",null,15.648,null," "]
[27,"Adrienne Hanson",null,"Getaway Stix",null,15.872,null,null,null,null,null," ",null,"",null,15.872,null," "]
[28,"Dawn Vandersteen",null,"Faiths Firefamelane",null,16.033000000000001,null,null,null,null,null," ",null,"",null,16.033000000000001,null," "]
[29,"Nadya McKim",null,"Houston",null,16.143000000000001,null,null,null,null,null," ",null,"",null,"",null,16.143000000000001]
[30,"Danyell Hegland",null,"Final E Independent",null,16.32,null,null,null,null,null," ",null,"",null,"",null,16.32]
[31,"Danielle Selk",null,"Curveball",null,16.45,null,null,null,null,null," ",null,"",null,"",null,16.45]
[32,"Collen Ahntholz",null,"Sugar N Fame",null,16.573,null,null,null,null,null," ",null,"",null,"",null,16.573]
[33,"Samantha Wood",null,"Divine Blue Angel",null,16.635000000000002,null,null,null,null,null," ",null,"",null,"",null,16.635000000000002]
[34,"Jodi Suchaplas",null,"Thirty Second Sabre",null,16.785,null,null,null,null,null," ",null,"",null,"",null,16.785]
[35,"Shannon Stein",null,"Misfit from Next door",null,16.837,null,null,null,null,null," ",null,"",null,"",null,16.837]
[36,"Jennifer Smart ",null,"LCC Real Dark Charge",null,"nt",null,null,null,null,null," ",null,"",null,"",null,""]
[37,"Ashley Chase",null,"Pale Face Perry",null,"nt",null,null,null,null,null," ",null,"",null,"",null,""]
[38,"Melanie Drier",null,"Rio",null,"nt",null,null,null,null,null," ",null,"",null,"",null,""]
[39,"Traci denBrok",null,"Biebers Spark",null,"nt",null,null,null,null,null," ",null,"",null,"",null,""]
[40,"Angela Tapp",null,"RS Leading Fast Chick",null,"nt",null,null,null,null,null," ",null,"",null,"",null,""]
[41,null,null,null,null,null,null,null,null,null,null,0,null," ",null," ",null," "]
[42,null,null,null,null,null,null,null,null,null,null,0,null," ",null," ",null," "]
[43,null,null,null,null,null,null,null,null,null,null,0,null," ",null," ",null," "]
[44,null,null,null,null,null,null,null,null,null,null,0,null," ",null," ",null," "]
[45,null,null,null,null,null,null,null,null,null,null,0,null," ",null," ",null," "]
[46,null,null,null,null,null,null,null,null,null,null,0,null," ",null," ",null," "]
[47,null,null,null,null,null,null,null,null,null,null,0,null," ",null," ",null," "]
[48,null,null,null,null,null,null,null,null,null,null,0,null," ",null," ",null," "]
[49,null,null,null,null,null,null,null,null,null,null,0,null," ",null," ",null," "]
[50,null,null,null,null,null,null,null,null,null,null,0,null," ",null," ",null," "]
[51,null,null,null,null,null,null,null,null,null,null,0,null," ",null," ",null," "]
[52,null,null,null,null,null,null,null,null,null,null,0,null," ",null," ",null," "]
[53,null,null,null,null,null,null,null,null,null,null,0,null," ",null," ",null," "]
[54,null,null,null,null,null,null,null,null,null,null,0,null," ",null," ",null," "]
[55,null,null,null,null,null,null,null,null,null,null,0,null," ",null," ",null," "]
[56,null,null,null,null,null,null,null,null,null,null,0,null," ",null," ",null," "]
[57,null,null,null,null,null,null,null,null,null,null,0,null," ",null," ",null," "]
[58,null,null,null,null,null,null,null,null,null,null,0,null," ",null," ",null," "]
[59,null,null,null,null,null,null,null,null,null,null,0,null," ",null," ",null," "]
[60,null,null,null,null,null,null,null,null,null,null,0,null," ",null," ",null," "]
[61,null,null,null,null,null,null,null,null,null,null,0,null," ",null," ",null," "]
[62,null,null,null,null,null,null,null,null,null,null,0,null," ",null," ",null," "]
[63,null,null,null,null,null,null,null,null,null,null,0,null," ",null," ",null," "]
[64,null,null,null,null,null,null,null,null,null,null,0,null," ",null," ",null," "]
[65,null,null,null,null,null,null,null,null,null,null,0,null," ",null,{"$f":"IF(F67 <$R$2,IF(F67 >=$P$2,F67,\" \"),\"\")","v":" "},null," "]
[66,null,null,null,null,null,null,null,null,null,null,{"$f":"IF(F68 <$N$2,F68,\" \")","v":0},null,{"$f":"IF(F68 <$P$2,IF(F68 >=$N$2,F68,\" \"),\"\")","v":" "},null," ",null,{"$f":"IF(F68 <$T$2,IF(F68 >=$R$2,F68,\" \"),\"\")","v":" "}]
[67,null,null,null,null,null,null,null,null,null,null,0,null," ",null," ",null," "]
[68,null,null,null,null,null,null,null,null,null,null,0,null," ",null," ",null," "]
[69,null,null,null,null,null,null,null,null,null,null,0,null," ",null," ",null," "]
[70,null,null,null,null,null,null,null,null,null,null,0,null," ",null," ",null," "]
[71,null,null,null,null,null,null,null,null,null,null,0,null," ",null," ",null," "]
[72,null,null,null,null,null,null,null,null,null,null,0,null," ",null," ",null," "]
[73,null,null,null,null,null,null,null,null,null,null,0,null," ",null," ",null," "]
[74,null,null,null,null,null,null,null,null,null,null,0,null," ",null," ",null," "]
[75,null,null,null,null,null,null,null,null,null,null,0,null," ",null," ",null," "]
[76,null,null,null,null,null,null,null,null,null,null,0,null," ",null," ",null," "]
[77,null,null,null,null,null,null,null,null,null,null,0,null," ",null," ",null," "]
[78,null,null,null,null,null,null,null,null,null,null,0,null," ",null," ",null," "]
[79,null,null,null,null,null,null,null,null,null,null,0,null," ",null," ",null," "]
[80,null,null,null,null,null,null,null,null,null,null,0,null," ",null," ",null," "]
[81,null,null,null,null,null,null,null,null,null,null,0,null," ",null," ",null," "]
[82,null,null,null,null,null,null,null,null,null,null,0,null," ",null," ",null," "]
[83,null,null,null,null,null,null,null,null,null,null,0,null," ",null," ",null," "]
[84,null,null,null,null,null,null,null,null,null,null,0,null," ",null," ",null," "]
[85,null,null,null,null,null,null,null,null,null,null,0,null," ",null," ",null," "]
[86,null,null,null,null,null,null,null,null,null,null,0,null," ",null," ",null," "]
[87,null,null,null,null,null,null,null,null,null,null,0,null," ",null," ",null," "]
[88,null,null,null,null,null,null,null,null,null,null,0,null," ",null," ",null,{"$f":"IF(F90 <$T$2,IF(F90 >=$R$2,F90,\" \"),\"\")","v":" "}]
[89,null,null,null,null,null,null,null,null,null,null,0,null," ",null," ",null," "]
[90,null,null,null,null,null,null,null,null,null,null,0,null," ",null," ",null," "]
[91,null,null,null,null,null,null,null,null,null,null,0,null," ",null," ",null," "]
[92,null,null,null,null,null,null,null,null,null,null,0,null," ",null," ",null," "]
[93,null,null,null,null,null,null,null,null,null,null,0,null," ",null," ",null," "]
[94,null,null,null,null,null,null,null,null,null,null,0,null," ",null," ",null," "]
[95,null,null,null,null,null,null,null,null,null,null,0,null," ",null," ",null," "]
[96,null,null,null,null,null,null,null,null,null,null,0,null," ",null," ",null," "]
[97,null,null,null,null,null,null,null,null,null,null,0,null," ",null," ",null," "]
[98,null,null,null,null,null,null,null,null,null,null,0,null," ",null," ",null," "]
[99,null,null,null,null,null,null,null,null,null,null,0,null," ",null," ",null," "]
[100,null,null,null,null,null,null,null,null,null,null,0,null," ",null," ",null," "]
[101,null,null,null,null,null,null,null,null,null,null,0,null," ",null," ",null," "]
[102,null,null,null,null,null,null,null,null,null,null,0,null," ",null," ",null," "]
[103,null,null,null,null,null,null,null,null,null,null,0,null," ",null," ",null," "]
[104,null,null,null,null,null,null,null,null,null,null,0,null," ",null," ",null," "]
[105,null,null,null,null,null,null,null,null,null,null,0,null," ",null," ",null," "]
[106,null,null,null,null,null,null,null,null,null,null,0,null," ",null," ",null," "]
[107,null,null,null,null,null,null,null,null,null,null,0,null," ",null," ",null," "]
[108,null,null,null,null,null,null,null,null,null,null,0,null,null,null," ",null," "]
[109,null,null,null,null,null,null,null,null,null,null,0,null,null,null," ",null," "]
[110,null,null,null,null,null,null,null,null,null,null,0,null,null,null," ",null," "]
[111,null,null,null,null,null,null,null,null,null,null,0,null,null,null," ",null," "]
[112,null,null,null,null,null,null,null,null,null,null,0,null,null,null," ",null," "]
[113,null,null,null,null,null,null,null,null,null,null,0,null,null,null," ",null," "]
[114,null,null,null,null,null,null,null,null,null,null,0,null,null,null," ",null," "]
[115,null,null,null,null,null,null,null,null,null,null,0,null,null,null," ",null," "]
[116,null,null,null,null,null,null,null,null,null,null,0,null,null,null," ",null," "]
[117,null,null,null,null,null,null,null,null,null,null,0,null,null,null," ",null," "]
[118,null,null,null,null,null,null,null,null,null,null,0,null,null,null," ",null," "]
[119,null,null,null,null,null,null,null,null,null,null,0,null,null,null," ",null," "]
[120,null,null,null,null,null,null,null,null,null,null,0,null,null,null," ",null," "]
[121,null,null,null,null,null,null,null,null,null,null,0,null,null,null," ",null," "]
[122,null,null,null,null,null,null,null,null,null,null,0,null,null,null," ",null," "]
[123,null,null,null,null,null,null,null,null,null,null,0,null,null,null," ",null," "]
[124,null,null,null,null,null,null,null,null,null,null,0,null,null,null," ",null," "]
[125,null,null,null,null,null,null,null,null,null,null,0,null,null,null," ",null," "]
[126,null,null,null,null,null,null,null,null,null,null,0,null,null,null," ",null," "]
[127,null,null,null,null,null,null,null,null,null,null,0,null,null,null," ",null," "]
[128,null,null,null,null,null,null,null,null,null,null,0,null,null,null," ",null," "]
[129,null,null,null,null,null,null,null,null,null,null,0,null,null,null,{"$f":"IF(F131 <$R$2,IF(F131 >=$P$2,F131,\" \"),\"\")","v":" "},null," "]
[130,null,null,null,null,null,null,null,null,null,null,{"$f":"IF(F132 <$N$2,F132,\" \")","v":0},null,null,null," ",null,{"$f":"IF(F132 <$T$2,IF(F132 >=$R$2,F132,\" \"),\"\")","v":" "}]
[131,null,null,null,null,null,null,null,null,null,null,0,null,null,null," ",null," "]
[132,null,null,null,null,null,null,null,null,null,null,0,null,null,null," ",null," "]
[133,null,null,null,null,null,null,null,null,null,null,0,null,null,null," ",null," "]
[134,null,null,null,null,null,null,null,null,null,null,0,null,null,null," ",null," "]
[135,null,null,null,null,null,null,null,null,null,null,0,null,null,null," ",null," "]
[136,null,null,null,null,null,null,null,null,null,null,0,null,null,null," ",null," "]
[137,null,null,null,null,null,null,null,null,null,null,0,null,null,null," ",null," "]
[138,null,null,null,null,null,null,null,null,null,null,0,null,null,null," ",null," "]
[139,null,null,null,null,null,null,null,null,null,null,0,null,null,null," ",null," "]
[140,null,null,null,null,null,null,null,null,null,null,0,null,null,null," ",null," "]
[141,null,null,null,null,null,null,null,null,null,null,0,null,null,null," ",null," "]
[142,null,null,null,null,null,null,null,null,null,null,0,null,null,null," ",null," "]
[143,null,null,null,null,null,null,null,null,null,null,0,null,null,null," ",null," "]
[144,null,null,null,null,null,null,null,null,null,null,0,null,null,null," ",null," "]
[145,null,null,null,null,null,null,null,null,null,null,0,null,null,null," ",null," "]
[146,null,null,null,null,null,null,null,null,null,null,0,null,null,null," ",null," "]
[147,null,null,null,null,null,null,null,null,null,null,0,null,null,null," ",null," "]
[148,null,null,null,null,null,null,null,null,null,null,0,null,null,null," ",null," "]
[149,null,null,null,null,null,null,null,null,null,null,0,null,null,null," ",null," "]
[150,null,null,null,null,null,null,null,null,null,null,0,null,null,null," ",null," "]
[151,null,null,null,null,null,null,null,null,null,null,0,null,null,null," ",null," "]
[152,null,null,null,null,null,null,null,null,null,null,0,null,null,null," ",null," "]
[153,null,null,null,null,null,null,null,null,null,null,0,null,null,null," ",null," "]
[154,null,null,null,null,null,null,null,null,null,null,0,null,null,null," ",null," "]
[155,null,null,null,null,null,null,null,null,null,null,0,null,null,null," ",null," "]
[156,null,null,null,null,null,null,null,null,null,null,0,null,null,null," ",null," "]
[157,null,null,null,null,null,null,null,null,null,null,0,null,null,null," ",null," "]
[158,null,null,null,null,null,null,null,null,null,null,0,null,null,null," ",null," "]
[159,null,null,null,null,null,null,null,null,null,null,0,null,null,null," ",null," "]
[160,null,null,null,null,null,null,null,null,null,null,0,null,null,null," ",null," "]
[161,null,null,null,null,null,null,null,null,null,null,0,null,null,null," ",null," "]
[162,null,null,null,null,null,null,null,null,null,null,0,null,null,null," ",null," "]
[163,null,null,null,null,null,null,null,null,null,null,0,null,null,null," ",null," "]
[164,null,null,null,null,null,null,null,null,null,null,0,null,null,null," ",null," "]
[165,null,null,null,null,null,null,null,null,null,null,0,null,null,null," ",null," "]
[166,null,null,null,null,null,null,null,null,null,null,0,null,null,null," ",null," "]
[167,null,null,null,null,null,null,null,null,null,null,0,null,null,null," ",null," "]
[168,null,null,null,null,null,null,null,null,null,null,0,null,null,null," ",null," "]
[169,null,null,null,null,null,null,null,null,null,null,0,null,null,null," ",null," "]
[170,null,null,null,null,null,null,null,null,null,null,0,null,null,null," ",null," "]
[171,null,null,null,null,null,null,null,null,null,null,0,null,null,null," ",null," "]
[172,null,null,null,null,null,null,null,null,null,null,0,null,null,null," ",null," "]
[173,null,null,null,null,null,null,null,null,null,null,0,null,null,null," ",null," "]
[174,null,null,null,null,null,null,null,null,null,null,0,null,null,null," ",null," "]
[175,null,null,null,null,null,null,null,null,null,null,0,null,null,null," ",null," "]
[176,null,null,null,null,null,null,null,null,null,null,0,null,null,null," ",null," "]
[177,null,null,null,null,null,null,null,null,null,null,0,null,null,null," ",null," "]
[178,null,null,null,null,null,null,null,null,null,null,0,null,null,null," ",null," "]
[179,null,null,null,null,null,null,null,null,null,null,0,null,null,null," ",null," "]
[180,null,null,null,null,null,null,null,null,null,null,0,null,null,null," ",null," "]
[181,null,null,null,null,null,null,null,null,null,null,0,null,null,null," ",null," "]
[182,null,null,null,null,null,null,null,null,null,null,0,null,null,null," ",null," "]
[183,null,null,null,null,null,null,null,null,null,null,0,null,null,null," ",null," "]
[184,null,null,null,null,null,null,null,null,null,null,0,null,null,null," ",null," "]
[185,null,null,null,null,null,null,null,null,null,null,0,null,null,null," ",null," "]
[186,null,null,null,null,null,null,null,null,null,null,0,null,null,null," ",null," "]
[187,null,null,null,null,null,null,null,null,null,null,0,null,null,null," ",null," "]
[188,null,null,null,null,null,null,null,null,null,null,0,null,null,null," ",null," "]
[189,null,null,null,null,null,null,null,null,null,null,0,null,null,null," ",null," "]
[190,null,null,null,null,null,null,null,null,null,null,0,null,null,null," ",null," "]
[191,null,null,null,null,null,null,null,null,null,null,0,null,null,null," ",null," "]
[192,null,null,null,null,null,null,null,null,null,null,0,null,null,null," ",null," "]
[193,null,null,null,null,null,null,null,null,null,null,0,null,null,null,{"$f":"IF(F195 <$R$2,IF(F195 >=$P$2,F195,\" \"),\"\")","v":" "},null," "]
[194,null,null,null,null,null,null,null,null,null,null,{"$f":"IF(F196 <$N$2,F196,\" \")","v":0},null,null,null," ",null,{"$f":"IF(F196 <$T$2,IF(F196 >=$R$2,F196,\" \"),\"\")","v":" "}]
[195,null,null,null,null,null,null,null,null,null,null,0,null,null,null," ",null," "]
[196,null,null,null,null,null,null,null,null,null,null,0,null,null,null," ",null," "]
[197,null,null,null,null,null,null,null,null,null,null,0,null,null,null," ",null," "]
[198,null,null,null,null,null,null,null,null,null,null,0,null,null,null," ",null," "]
[199,null,null,null,null,null,null,null,null,null,null,0,null,null,null," ",null," "]
[200,null,null,null,null,null,null,null,null,null,null,0,null,null,null," ",null," "]
[201,null,null,null,null,null,null,null,null,null,null,0,null,null,null," ",null," "]
[202,null,null,null,null,null,null,null,null,null,null,0,null,null,null," ",null," "]
[203,null,null,null,null,null,null,null,null,null,null,0,null,null,null," ",null," "]
[204,null,null,null,null,null,null,null,null,null,null,0,null,null,null," ",null," "]
[205,null,null,null,null,null,null,null,null,null,null,0,null,null,null," ",null," "]
[206,null,null,null,null,null,null,null,null,null,null,0,null,null,null," ",null," "]
[207,null,null,null,null,null,null,null,null,null,null,0,null,null,null," ",null," "]
[208,null,null,null,null,null,null,null,null,null,null,0,null,null,null," ",null," "]
[209,null,null,null,null,null,null,null,null,null,null,0,null,null,null," ",null," "]
[210,null,null,null,null,null,null,null,null,null,null,0,null,null,null," ",null," "]
[211,null,null,null,null,null,null,null,null,null,null,0,null,null,null," ",null," "]
[212,null,null,null,null,null,null,null,null,null,null,0,null,null,null," ",null," "]
[213,null,null,null,null,null,null,null,null,null,null,0,null,null,null," ",null," "]
[214,null,null,null,null,null,null,null,null,null,null,0,null,null,null," ",null," "]
[215,null,null,null,null,null,null,null,null,null,null,0,null,null,null," ",null," "]
[216,null,null,null,null,null,null,null,null,null,null,0,null,null,null," ",null," "]
[217,null,null,null,null,null,null,null,null,null,null,0,null,null,null," ",null," "]
[218,null,null,null,null,null,null,null,null,null,null,0,null,null,null," ",null," "]
[219,null,null,null,null,null,null,null,null,null,null,0,null,null,null," ",null," "]
[220,null,null,null,null,null,null,null,null,null,null,0,null,null,null," ",null," "]
[221,null,null,null,null,null,null,null,null,null,null,0,null,null,null," ",null," "]
[222,null,null,null,null,null,null,null,null,null,null,0,null,null,null," ",null," "]
[223,null,null,null,null,null,null,null,null,null,null,0,null,null,null," ",null," "]
[224,null,null,null,null,null,null,null,null,null,null,0,null,null,null," ",null," "]
[225,null,null,null,null,null,null,null,null,null,null,0,null,null,null," ",null," "]
[226,null,null,null,null,null,null,null,null,null,null,0,null,null,null," ",null," "]
[227,null,null,null,null,null,null,null,null,null,null,0,null,null,null," ",null," "]
[228,null,null,null,null,null,null,null,null,null,null,0,null,null,null," ",null," "]
[229,null,null,null,null,null,null,null,null,null,null,0,null,null,null," ",null," "]
[230,null,null,null,null,null,null,null,null,null,null,0,null,null,null," ",null," "]
[231,null,null,null,null,null,null,null,null,null,null,0,null,null,null," ",null," "]
[232,null,null,null,null,null,null,null,null,null,null,0,null,null,null," ",null," "]
[233,null,null,null,null,null,null,null,null,null,null,0,null,null,null," ",null," "]
[234,null,null,null,null,null,null,null,null,null,null,0,null,null,null," ",null," "]
[235,null,null,null,null,null,null,null,null,null,null,0,null,null,null," ",null," "]
[236,null,null,null,null,null,null,null,null,null,null,0,null,null,null," ",null," "]
[237,null,null,null,null,null,null,null,null,null,null,0,null,null,null," ",null," "]
[238,null,null,null,null,null,null,null,null,null,null,0,null,null,null," ",null," "]
[239,null,null,null,null,null,null,null,null,null,null,0,null,null,null," ",null," "]
[240,null,null,null,null,null,null,null,null,null,null,0,null,null,null," ",null," "]
[241,null,null,null,null,null,null,null,null,null,null,0,null,null,null," ",null," "]
[242,null,null,null,null,null,null,null,null,null,null,0,null,null,null," ",null," "]
[243,null,null,null,null,null,null,null,null,null,null,0,null,null,null," ",null," "]
[244,null,null,null,null,null,null,null,null,null,null,0,null,null,null," ",null," "]
[245,null,null,null,null,null,null,null,null,null,null,0,null,null,null," ",null," "]
[246,null,null,null,null,null,null,null,null,null,null,0,null,null,null," ",null," "]
[247,null,null,null,null,null,null,null,null,null,null,0,null,null,null," ",null," "]
[248,null,null,null,null,null,null,null,null,null,null,0,null,null,null," ",null," "]
[249,null,null,null,null,null,null,null,null,null,null,0,null,null,null," ",null," "]
[250,null,null,null,null,null,null,null,null,null,null,0,null,null,null," ",null," "]
[251,null,null,null,null,null,null,null,null,null,null,0,null,null,null," ",null," "]
[252,null,null,null,null,null,null,null,null,null,null,0,null,null,null," ",null," "]
[253,null,null,null,null,null,null,null,null,null,null,0,null,null,null," ",null," "]
[254,null,null,null,null,null,null,null,null,null,null,0,null,null,null," ",null," "]
[255,null,null,null,null,null,null,null,null,null,null,0,null,null,null," ",null," "]
[256,null,null,null,null,null,null,null,null,null,null,0,null,null,null," ",null," "]
[257,null,null,null,null,null,null,null,null,null,null,0,null,null,null,{"$f":"IF(F259 <$R$2,IF(F259 >=$P$2,F259,\" \"),\"\")","v":" "},null," "]
[258,null,null,null,null,null,null,null,null,null,null,{"$f":"IF(F260 <$N$2,F260,\" \")","v":0},null,null,null," ",null,{"$f":"IF(F260 <$T$2,IF(F260 >=$R$2,F260,\" \"),\"\")","v":" "}]
[259,null,null,null,null,null,null,null,null,null,null,{"$f":"IF(F261 <$N$2,F261,\" \")","v":0},null,null,null," ",null," "]
[260,null,null,null,null,null,null,null,null,null,null,{"$f":"IF(F262 <$N$2,F262,\" \")","v":0},null,null,null," ",null," "]
[261,null,null,null,null,null,null,null,null,null,null,null,null,null,null," ",null," "]
[262,null,null,null,null,null,null,null,null,null,null,null,null,null,null," ",null," "]
[263,null,null,null,null,null,null,null,null,null,null,null,null,null,null," ",null," "]
[264,null,null,null,null,null,null,null,null,null,null,null,null,null,null," ",null," "]
[265,null,null,null,null,null,null,null,null,null,null,null,null,null,null," ",null," "]
[266,null,null,null,null,null,null,null,null,null,null,null,null,null,null," ",null," "]
[267,null,null,null,null,null,null,null,null,null,null,null,null,null,null," ",null," "]
[268,null,null,null,null,null,null,null,null,null,null,null,null,null,null," ",null," "]
[269,null,null,null,null,null,null,null,null,null,null,null,null,null,null," ",null," "]
[270,null,null,null,null,null,null,null,null,null,null,null,null,null,null," ",null," "]
[271,null,null,null,null,null,null,null,null,null,null,null,null,null,null," ",null," "]
[272,null,null,null,null,null,null,null,null,null,null,null,null,null,null," ",null," "]
[273,null,null,null,null,null,null,null,null,null,null,null,null,null,null," ",null," "]
[274,null,null,null,null,null,null,null,null,null,null,null,null,null,null," ",null," "]
[275,null,null,null,null,null,null,null,null,null,null,null,null,null,null," ",null," "]
[276,null,null,null,null,null,null,null,null,null,null,null,null,null,null," ",null," "]
[277,null,null,null,null,null,null,null,null,null,null,null,null,null,null," ",null," "]
[278,null,null,null,null,null,null,null,null,null,null,null,null,null,null," ",null," "]
[279,null,null,null,null,null,null,null,null,null,null,null,null,null,null," ",null," "]
[280,null,null,null,null,null,null,null,null,null,null,null,null,null,null," ",null," "]
[281,null,null,null,null,null,null,null,null,null,null,null,null,null,null," ",null," "]
[282,null,null,null,null,null,null,null,null,null,null,null,null,null,null," ",null," "]
[283,null,null,null,null,null,null,null,null,null,null,null,null,null,null," ",null," "]
[284,null,null,null,null,null,null,null,null,null,null,null,null,null,null," ",null," "]
[285,null,null,null,null,null,null,null,null,null,null,null,null,null,null," ",null," "]
[286,null,null,null,null,null,null,null,null,null,null,null,null,null,null," ",null," "]
[287,null,null,null,null,null,null,null,null,null,null,null,null,null,null," ",null," "]
[288,null,null,null,null,null,null,null,null,null,null,null,null,null,null," ",null," "]
[289,null,null,null,null,null,null,null,null,null,null,null,null,null,null," ",null," "]
[290,null,null,null,null,null,null,null,null,null,null,null,null,null,null," ",null," "]
[291,null,null,null,null,null,null,null,null,null,null,null,null,null,null," ",null," "]
[292,null,null,null,null,null,null,null,null,null,null,null,null,null,null," ",null," "]
[293,null,null,null,null,null,null,null,null,null,null,null,null,null,null," ",null," "]
[294,null,null,null,null,null,null,null,null,null,null,null,null,null,null," ",null," "]
[295,null,null,null,null,null,null,null,null,null,null,null,null,null,null," ",null," "]
[296,null,null,null,null,null,null,null,null,null,null,null,null,null,null," ",null," "]
[297,null,null,null,null,null,null,null,null,null,null,null,null,null,null," ",null," "]
[298,null,null,null,null,null,null,null,null,null,null,null,null,null,null," ",null," "]
[299,null,null,null,null,null,null,null,null,null,null,null,null,null,null," ",null," "]
[300,null,null,null,null,null,null,null,null,null,null,null,null,null,null," ",null," "]
[301,null,null,null,null,null,null,null,null,null,null,null,null,null,null," ",null," "]
[302,null,null,null,null,null,null,null,null,null,null,null,null,null,null," ",null," "]
[303,null,null,null,null,null,null,null,null,null,null,null,null,null,null," ",null," "]
[304,null,null,null,null,null,null,null,null,null,null,null,null,null,null," ",null," "]
[305,null,null,null,null,null,null,null,null,null,null,null,null,null,null," ",null," "]
[306,null,null,null,null,null,null,null,null,null,null,null,null,null,null," ",null," "]
[307,null,null,null,null,null,null,null,null,null,null,null,null,null,null," ",null," "]
[308,null,null,null,null,null,null,null,null,null,null,null,null,null,null," ",null," "]
[309,null,null,null,null,null,null,null,null,null,null,null,null,null,null," ",null," "]
[310,null,null,null,null,null,null,null,null,null,null,null,null,null,null," ",null," "]
[311,null,null,null,null,null,null,null,null,null,null,null,null,null,null," ",null," "]
[312,null,null,null,null,null,null,null,null,null,null,null,null,null,null," ",null," "]
[313,null,null,null,null,null,null,null,null,null,null,null,null,null,null," ",null," "]
[314,null,null,null,null,null,null,null,null,null,null,null,null,null,null," ",null," "]
[315,null,null,null,null,null,null,null,null,null,null,null,null,null,null," ",null," "]
[316,null,null,null,null,null,null,null,null,null,null,null,null,null,null," ",null," "]
[317,null,null,null,null,null,null,null,null,null,null,null,null,null,null," ",null," "]
[318,null,null,null,null,null,null,null,null,null,null,null,null,null,null," ",null," "]
[319,null,null,null,null,null,null,null,null,null,null,null,null,null,null," ",null," "]
[320,null,null,null,null,null,null,null,null,null,null,null,null,null,null," ",null," "]
[321,null,null,null,null,null,null,null,null,null,null,null,null,null,null,{"$f":"IF(F323 <$R$2,IF(F323 >=$P$2,F323,\" \"),\"\")","v":" "},null," "]
[322,null,null,null,null,null,null,null,null,null,null,null,null,null,null," ",null,{"$f":"IF(F324 <$T$2,IF(F324 >=$R$2,F324,\" \"),\"\")","v":" "}]
[323,null,null,null,null,null,null,null,null,null,null,null,null,null,null," ",null," "]
[324,null,null,null,null,null,null,null,null,null,null,null,null,null,null," ",null," "]
[325,null,null,null,null,null,null,null,null,null,null,null,null,null,null," ",null," "]
[326,null,null,null,null,null,null,null,null,null,null,null,null,null,null," ",null," "]
[327,null,null,null,null,null,null,null,null,null,null,null,null,null,null," ",null," "]
[328,null,null,null,null,null,null,null,null,null,null,null,null,null,null," ",null," "]
[329,null,null,null,null,null,null,null,null,null,null,null,null,null,null," ",null," "]
[330,null,null,null,null,null,null,null,null,null,null,null,null,null,null," ",null," "]
[331,null,null,null,null,null,null,null,null,null,null,null,null,null,null," ",null," "]
[332,null,null,null,null,null,null,null,null,null,null,null,null,null,null," ",null," "]
[333,null,null,null,null,null,null,null,null,null,null,null,null,null,null," ",null," "]
[334,null,null,null,null,null,null,null,null,null,null,null,null,null,null," ",null," "]
[335,null,null,null,null,null,null,null,null,null,null,null,null,null,null," ",null," "]
[336,null,null,null,null,null,null,null,null,null,null,null,null,null,null," ",null," "]
[337,null,null,null,null,null,null,null,null,null,null,null,null,null,null," ",null," "]
[338,null,null,null,null,null,null,null,null,null,null,null,null,null,null," ",null," "]
[339,null,null,null,null,null,null,null,null,null,null,null,null,null,null," ",null," "]
[340,null,null,null,null,null,null,null,null,null,null,null,null,null,null," ",null," "]
[341,null,null,null,null,null,null,null,null,null,null,null,null,null,null," ",null," "]
[342,null,null,null,null,null,null,null,null,null,null,null,null,null,null," ",null," "]
[343,null,null,null,null,null,null,null,null,null,null,null,null,null,null," ",null," "]
[344,null,null,null,null,null,null,null,null,null,null,null,null,null,null," ",null," "]
[345,null,null,null,null,null,null,null,null,null,null,null,null,null,null," ",null," "]
[346,null,null,null,null,null,null,null,null,null,null,null,null,null,null," ",null," "]
[347,null,null,null,null,null,null,null,null,null,null,null,null,null,null," ",null," "]
[348,null,null,null,null,null,null,null,null,null,null,null,null,null,null," ",null," "]
[349,null,null,null,null,null,null,null,null,null,null,null,null,null,null," ",null," "]
[350,null,null,null,null,null,null,null,null,null,null,null,null,null,null," ",null," "]

{"sheet":"Youth draw","index":1,"n_rows":352,"n_cols":20,"rows_kept":352,"cut":false,"hidden":false,"merged":[]}
["Youth",null,null,null,null,null,null,"# entries",null,"fee",null,"1D",null,"2D",null,"3D"]
["Draw #","   Name",null,"   Horse",null,"   time",null,{"$f":"350 - COUNTBLANK('OPEN DRAW'!B3:B352)","v":40},null,{"$f":"SUM(#REF!)","v":{"$error":"#REF!"}},null,{"$f":"MIN(F3:F352)","v":14.659000000000001},null,{"$f":"SUM(L2+1)","v":15.659000000000001},null,{"$f":"SUM(N2+1)","v":16.658999999999999},null,100,null,{"$f":"COUNTA(B3:B150)","v":15}]
[1,"McKenzie Shauf",null,"Sarge",null,14.659000000000001,null,null,null,null,null,{"$f":"IF(F3 <$N$2,F3,\" \")","v":14.659000000000001},null,{"$f":"IF(F3 <$P$2,IF(F3 >=$N$2,F3,\" \"),\"\")","v":" "},null,{"$f":"IF(F3 <$R$2,IF(F3 >=$P$2,F3,\" \"),\"\")","v":" "}]
[2,"Julie Glaicar",null,"Fortune",null,14.811999999999999,null,null,null,null,null,{"$f":"IF(F4 <$N$2,F4,\" \")","v":14.811999999999999},null,{"$f":"IF(F4 <$P$2,IF(F4 >=$N$2,F4,\" \"),\"\")","v":" "},null,{"$f":"IF(F4 <$R$2,IF(F4 >=$P$2,F4,\" \"),\"\")","v":" "}]
[3,"Emma Hansen",null,"Kit",null,14.999000000000001,null,null,null,null,null,{"$f":"IF(F5 <$N$2,F5,\" \")","v":14.999000000000001},null,{"$f":"IF(F5 <$P$2,IF(F5 >=$N$2,F5,\" \"),\"\")","v":" "},null,{"$f":"IF(F5 <$R$2,IF(F5 >=$P$2,F5,\" \"),\"\")","v":" "}]
[4,"Julie Glaicar",null,"Frenchys Flyin by",null,15.010999999999999,null,null,null,null,null,{"$f":"IF(F6 <$N$2,F6,\" \")","v":15.010999999999999},null,{"$f":"IF(F6 <$P$2,IF(F6 >=$N$2,F6,\" \"),\"\")","v":" "},null,{"$f":"IF(F6 <$R$2,IF(F6 >=$P$2,F6,\" \"),\"\")","v":" "}]
[5,"Kayli Peters",null,"Bluebell",null,15.098000000000001,null,null,null,null,null,{"$f":"IF(F7 <$N$2,F7,\" \")","v":15.098000000000001},null,{"$f":"IF(F7 <$P$2,IF(F7 >=$N$2,F7,\" \"),\"\")","v":" "},null,{"$f":"IF(F7 <$R$2,IF(F7 >=$P$2,F7,\" \"),\"\")","v":" "}]
[6,"Amy Naismith",null,"Cowgirl",null,15.138,null,null,null,null,null,{"$f":"IF(F8 <$N$2,F8,\" \")","v":15.138},null,{"$f":"IF(F8 <$P$2,IF(F8 >=$N$2,F8,\" \"),\"\")","v":" "},null,{"$f":"IF(F8 <$R$2,IF(F8 >=$P$2,F8,\" \"),\"\")","v":" "}]
[7,"Kassidy Hainrich",null,"TJ",null,15.239000000000001,null,null,null,null,null,{"$f":"IF(F9 <$N$2,F9,\" \")","v":15.239000000000001},null,{"$f":"IF(F9 <$P$2,IF(F9 >=$N$2,F9,\" \"),\"\")","v":" "},null,{"$f":"IF(F9 <$R$2,IF(F9 >=$P$2,F9,\" \"),\"\")","v":" "}]
[8,"Kiana Karle",null,"Hope",null,15.333,null,null,null,null,null,{"$f":"IF(F10 <$N$2,F10,\" \")","v":15.333},null,{"$f":"IF(F10 <$P$2,IF(F10 >=$N$2,F10,\" \"),\"\")","v":" "},null,{"$f":"IF(F10 <$R$2,IF(F10 >=$P$2,F10,\" \"),\"\")","v":" "}]
[9,"Hannah Kutyn",null,"Montanna",null,15.372999999999999,null,null,null,null,null,{"$f":"IF(F11 <$N$2,F11,\" \")","v":15.372999999999999},null,{"$f":"IF(F11 <$P$2,IF(F11 >=$N$2,F11,\" \"),\"\")","v":" "},null,{"$f":"IF(F11 <$R$2,IF(F11 >=$P$2,F11,\" \"),\"\")","v":" "}]
[10,"Brooke Heinrich",null,"Smoke N Spark",null,15.414999999999999,null,null,null,null,null,{"$f":"IF(F12 <$N$2,F12,\" \")","v":15.414999999999999},null,{"$f":"IF(F12 <$P$2,IF(F12 >=$N$2,F12,\" \"),\"\")","v":" "},null,{"$f":"IF(F12 <$R$2,IF(F12 >=$P$2,F12,\" \"),\"\")","v":" "}]
[11,"Emma Hansen",null,"Alabama Quick",null,15.478999999999999,null,null,null,null,null,{"$f":"IF(F13 <$N$2,F13,\" \")","v":15.478999999999999},null,{"$f":"IF(F13 <$P$2,IF(F13 >=$N$2,F13,\" \"),\"\")","v":" "},null,{"$f":"IF(F13 <$R$2,IF(F13 >=$P$2,F13,\" \"),\"\")","v":" "}]
[12,"Twyla Dowd",null,"Cyprus",null,15.492000000000001,null,null,null,null,null,{"$f":"IF(F14 <$N$2,F14,\" \")","v":15.492000000000001},null,{"$f":"IF(F14 <$P$2,IF(F14 >=$N$2,F14,\" \"),\"\")","v":" "},null,{"$f":"IF(F14 <$R$2,IF(F14 >=$P$2,F14,\" \"),\"\")","v":" "}]
[13,"Kassidy Hainrich",null,"Sunny Deanna",null,15.699,null,null,null,null,null,{"$f":"IF(F15 <$N$2,F15,\" \")","v":" "},null,{"$f":"IF(F15 <$P$2,IF(F15 >=$N$2,F15,\" \"),\"\")","v":15.699},null,{"$f":"IF(F15 <$R$2,IF(F15 >=$P$2,F15,\" \"),\"\")","v":" "}]
[14,"Abby Procter",null,"Taz",null,15.974,null,null,null,null,null,{"$f":"IF(F16 <$N$2,F16,\" \")","v":" "},null,{"$f":"IF(F16 <$P$2,IF(F16 >=$N$2,F16,\" \"),\"\")","v":15.974},null,{"$f":"IF(F16 <$R$2,IF(F16 >=$P$2,F16,\" \"),\"\")","v":" "}]
[15,"Brooklyn Shauf",null,"PP Chips Avenger",null,"nt",null,null,null,null,null,{"$f":"IF(F17 <$N$2,F17,\" \")","v":" "},null,{"$f":"IF(F17 <$P$2,IF(F17 >=$N$2,F17,\" \"),\"\")","v":""},null,{"$f":"IF(F17 <$R$2,IF(F17 >=$P$2,F17,\" \"),\"\")","v":""}]
[16,null,null,null,null,null,null,null,null,null,null,{"$f":"IF(F18 <$N$2,F18,\" \")","v":0},null,{"$f":"IF(F18 <$P$2,IF(F18 >=$N$2,F18,\" \"),\"\")","v":" "},null,{"$f":"IF(F18 <$R$2,IF(F18 >=$P$2,F18,\" \"),\"\")","v":" "}]
[17,null,null,null,null,null,null,null,null,null,null,0,null," ",null," "]
[18,null,null,null,null,null,null,null,null,null,null,0,null," ",null," "]
[19,null,null,null,null,null,null,null,null,null,null,0,null," ",null," "]
[20,null,null,null,null,null,null,null,null,null,null,0,null," ",null," "]
[21,null,null,null,null,null,null,null,null,null,null,0,null," ",null," "]
[22,null,null,null,null,null,null,null,null,null,null,0,null," ",null," "]
[23,null,null,null,null,null,null,null,null,null,null,0,null," ",null," "]
[24,null,null,null,null,null,null,null,null,null,null,0,null," ",null," "]
[25,null,null,null,null,null,null,null,null,null,null,0,null," ",null," "]
[26,null,null,null,null,null,null,null,null,null,null,0,null," ",null," "]
[27,null,null,null,null,null,null,null,null,null,null,0,null," ",null," "]
[28,null,null,null,null,null,null,null,null,null,null,0,null," ",null," "]
[29,null,null,null,null,null,null,null,null,null,null,0,null," ",null," "]
[30,null,null,null,null,null,null,null,null,null,null,0,null," ",null," "]
[31,null,null,null,null,null,null,null,null,null,null,0,null," ",null," "]
[32,null,null,null,null,null,null,null,null,null,null,0,null," ",null," "]
[33,null,null,null,null,null,null,null,null,null,null,{"$f":"IF(F35 <$N$2,F35,\" \")","v":0},null,{"$f":"IF(F35 <$P$2,IF(F35 >=$N$2,F35,\" \"),\"\")","v":" "},null,{"$f":"IF(F35 <$R$2,IF(F35 >=$P$2,F35,\" \"),\"\")","v":" "}]
[34,null,null,null,null,null,null,null,null,null,null,0,null," ",null," "]
[35,null,null,null,null,null,null,null,null,null,null,0,null," ",null," "]
[36,null,null,null,null,null,null,null,null,null,null,0,null," ",null," "]
[37,null,null,null,null,null,null,null,null,null,null,0,null," ",null," "]
[38,null,null,null,null,null,null,null,null,null,null,0,null," ",null," "]
[39,null,null,null,null,null,null,null,null,null,null,0,null," ",null," "]
[40,null,null,null,null,null,null,null,null,null,null,0,null," ",null," "]
[41,null,null,null,null,null,null,null,null,null,null,0,null," ",null," "]
[42,null,null,null,null,null,null,null,null,null,null,0,null," ",null," "]
[43,null,null,null,null,null,null,null,null,null,null,0,null," ",null," "]
[44,null,null,null,null,null,null,null,null,null,null,0,null," ",null," "]
[45,null,null,null,null,null,null,null,null,null,null,0,null," ",null," "]
[46,null,null,null,null,null,null,null,null,null,null,0,null," ",null," "]
[47,null,null,null,null,null,null,null,null,null,null,0,null," ",null," "]
[48,null,null,null,null,null,null,null,null,null,null,0,null," ",null," "]
[49,null,null,null,null,null,null,null,null,null,null,0,null," ",null," "]
[50,null,null,null,null,null,null,null,null,null,null,0,null," ",null," "]
[51,null,null,null,null,null,null,null,null,null,null,0,null," ",null," "]
[52,null,null,null,null,null,null,null,null,null,null,0,null," ",null," "]
[53,null,null,null,null,null,null,null,null,null,null,0,null," ",null," "]
[54,null,null,null,null,null,null,null,null,null,null,0,null," ",null," "]
[55,null,null,null,null,null,null,null,null,null,null,0,null," ",null," "]
[56,null,null,null,null,null,null,null,null,null,null,0,null," ",null," "]
[57,null,null,null,null,null,null,null,null,null,null,0,null," ",null," "]
[58,null,null,null,null,null,null,null,null,null,null,0,null," ",null," "]
[59,null,null,null,null,null,null,null,null,null,null,0,null," ",null," "]
[60,null,null,null,null,null,null,null,null,null,null,0,null," ",null," "]
[61,null,null,null,null,null,null,null,null,null,null,0,null," ",null," "]
[62,null,null,null,null,null,null,null,null,null,null,0,null," ",null," "]
[63,null,null,null,null,null,null,null,null,null,null,0,null," ",null," "]
[64,null,null,null,null,null,null,null,null,null,null,0,null," ",null," "]
[65,null,null,null,null,null,null,null,null,null,null,{"$f":"IF(F67 <$N$2,F67,\" \")","v":0},null,{"$f":"IF(F67 <$P$2,IF(F67 >=$N$2,F67,\" \"),\"\")","v":" "},null,{"$f":"IF(F67 <$R$2,IF(F67 >=$P$2,F67,\" \"),\"\")","v":" "}]
[66,null,null,null,null,null,null,null,null,null,null,0,null," ",null," "]
[67,null,null,null,null,null,null,null,null,null,null,0,null," ",null," "]
[68,null,null,null,null,null,null,null,null,null,null,0,null," ",null," "]
[69,null,null,null,null,null,null,null,null,null,null,0,null," ",null," "]
[70,null,null,null,null,null,null,null,null,null,null,0,null," ",null," "]
[71,null,null,null,null,null,null,null,null,null,null,0,null," ",null," "]
[72,null,null,null,null,null,null,null,null,null,null,0]
[73,null,null,null,null,null,null,null,null,null,null,0,null,{"$f":"IF(F75 <$P$2,IF(F75 >=$N$2,F75,\" \"),\"\")","v":" "},null,{"$f":"IF(F75 <$R$2,IF(F75 >=$P$2,F75,\" \"),\"\")","v":" "}]
[74,null,null,null,null,null,null,null,null,null,null,0,null," ",null," "]
[75,null,null,null,null,null,null,null,null,null,null,0,null," ",null," "]
[76,null,null,null,null,null,null,null,null,null,null,0,null," ",null," "]
[77,null,null,null,null,null,null,null,null,null,null,0,null," ",null," "]
[78,null,null,null,null,null,null,null,null,null,null,0,null," ",null," "]
[79,null,null,null,null,null,null,null,null,null,null,0,null," ",null," "]
[80,null,null,null,null,null,null,null,null,null,null,0,null," ",null," "]
[81,null,null,null,null,null,null,null,null,null,null,0,null," ",null," "]
[82,null,null,null,null,null,null,null,null,null,null,0,null," ",null," "]
[83,null,null,null,null,null,null,null,null,null,null,0,null," ",null," "]
[84,null,null,null,null,null,null,null,null,null,null,0,null," ",null," "]
[85,null,null,null,null,null,null,null,null,null,null,0,null," ",null," "]
[86,null,null,null,null,null,null,null,null,null,null,0,null," ",null," "]
[87,null,null,null,null,null,null,null,null,null,null,0,null," ",null," "]
[88,null,null,null,null,null,null,null,null,null,null,0,null," ",null," "]
[89,null,null,null,null,null,null,null,null,null,null,0,null," ",null," "]
[90,null,null,null,null,null,null,null,null,null,null,0,null," ",null," "]
[91,null,null,null,null,null,null,null,null,null,null,0,null," ",null," "]
[92,null,null,null,null,null,null,null,null,null,null,0,null," ",null," "]
[93,null,null,null,null,null,null,null,null,null,null,0,null," ",null," "]
[94,null,null,null,null,null,null,null,null,null,null,0,null," ",null," "]
[95,null,null,null,null,null,null,null,null,null,null,0,null," ",null," "]
[96,null,null,null,null,null,null,null,null,null,null,0,null," ",null," "]
[97,null,null,null,null,null,null,null,null,null,null,0,null," ",null," "]
[98,null,null,null,null,null,null,null,null,null,null,0,null," ",null," "]
[99,null,null,null,null,null,null,null,null,null,null,0,null," ",null," "]
[100,null,null,null,null,null,null,null,null,null,null,0,null," ",null," "]
[101,null,null,null,null,null,null,null,null,null,null,{"$f":"IF(F103 <$N$2,F103,\" \")","v":0},null,{"$f":"IF(F103 <$P$2,IF(F103 >=$N$2,F103,\" \"),\"\")","v":" "},null,{"$f":"IF(F103 <$R$2,IF(F103 >=$P$2,F103,\" \"),\"\")","v":" "}]
[102,null,null,null,null,null,null,null,null,null,null,0,null," ",null," "]
[103,null,null,null,null,null,null,null,null,null,null,0,null," ",null," "]
[104,null,null,null,null,null,null,null,null,null,null,0,null," ",null," "]
[105,null,null,null,null,null,null,null,null,null,null,0,null," ",null," "]
[106,null,null,null,null,null,null,null,null,null,null,0,null," ",null," "]
[107,null,null,null,null,null,null,null,null,null,null,0,null," ",null," "]
[108,null,null,null,null,null,null,null,null,null,null,0,null," ",null," "]
[109,null,null,null,null,null,null,null,null,null,null,0,null," ",null," "]
[110,null,null,null,null,null,null,null,null,null,null,0,null," ",null," "]
[111,null,null,null,null,null,null,null,null,null,null,0,null," ",null," "]
[112,null,null,null,null,null,null,null,null,null,null,0,null," ",null," "]
[113,null,null,null,null,null,null,null,null,null,null,0,null," ",null," "]
[114,null,null,null,null,null,null,null,null,null,null,0,null," ",null," "]
[115,null,null,null,null,null,null,null,null,null,null,0,null," ",null," "]
[116,null,null,null,null,null,null,null,null,null,null,0,null," ",null," "]
[117,null,null,null,null,null,null,null,null,null,null,0,null," ",null," "]
[118,null,null,null,null,null,null,null,null,null,null,0,null," ",null," "]
[119,null,null,null,null,null,null,null,null,null,null,0,null," ",null," "]
[120,null,null,null,null,null,null,null,null,null,null,0,null," ",null," "]
[121,null,null,null,null,null,null,null,null,null,null,0,null," ",null," "]
[122,null,null,null,null,null,null,null,null,null,null,0,null," ",null," "]
[123,null,null,null,null,null,null,null,null,null,null,0,null," ",null," "]
[124,null,null,null,null,null,null,null,null,null,null,0,null," ",null," "]
[125,null,null,null,null,null,null,null,null,null,null,0,null," ",null," "]
[126,null,null,null,null,null,null,null,null,null,null,0,null," ",null," "]
[127,null,null,null,null,null,null,null,null,null,null,0,null," ",null," "]
[128,null,null,null,null,null,null,null,null,null,null,0,null," ",null," "]
[129,null,null,null,null,null,null,null,null,null,null,0,null," ",null," "]
[130,null,null,null,null,null,null,null,null,null,null,{"$f":"IF(F132 <$N$2,F132,\" \")","v":0},null,{"$f":"IF(F132 <$P$2,IF(F132 >=$N$2,F132,\" \"),\"\")","v":" "},null,{"$f":"IF(F132 <$R$2,IF(F132 >=$P$2,F132,\" \"),\"\")","v":" "}]
[131,null,null,null,null,null,null,null,null,null,null,0,null," ",null," "]
[132,null,null,null,null,null,null,null,null,null,null,0,null," ",null," "]
[133,null,null,null,null,null,null,null,null,null,null,0,null," ",null," "]
[134,null,null,null,null,null,null,null,null,null,null,0,null," ",null," "]
[135,null,null,null,null,null,null,null,null,null,null,0,null," ",null," "]
[136,null,null,null,null,null,null,null,null,null,null,0,null," ",null," "]
[137,null,null,null,null,null,null,null,null,null,null,0,null," ",null," "]
[138,null,null,null,null,null,null,null,null,null,null,0,null," ",null," "]
[139,null,null,null,null,null,null,null,null,null,null,0,null," ",null," "]
[140,null,null,null,null,null,null,null,null,null,null,0,null," ",null," "]
[141,null,null,null,null,null,null,null,null,null,null,0,null," ",null," "]
[142,null,null,null,null,null,null,null,null,null,null,0,null," ",null," "]
[143,null,null,null,null,null,null,null,null,null,null,0,null," ",null," "]
[144,null,null,null,null,null,null,null,null,null,null,0,null," ",null," "]
[145,null,null,null,null,null,null,null,null,null,null,0,null," ",null," "]
[146,null,null,null,null,null,null,null,null,null,null,0,null," ",null," "]
[147,null,null,null,null,null,null,null,null,null,null,0,null," ",null," "]
[148,null,null,null,null,null,null,null,null,null,null,0,null," ",null," "]
[149,null,null,null,null,null,null,null,null,null,null,0,null," ",null," "]
[150,null,null,null,null,null,null,null,null,null,null,0,null," ",null," "]
[151,null,null,null,null,null,null,null,null,null,null,0,null," ",null," "]
[152,null,null,null,null,null,null,null,null,null,null,0,null," ",null," "]
[153,null,null,null,null,null,null,null,null,null,null,0,null," ",null," "]
[154,null,null,null,null,null,null,null,null,null,null,0,null," ",null," "]
[155,null,null,null,null,null,null,null,null,null,null,0,null," ",null," "]
[156,null,null,null,null,null,null,null,null,null,null,0,null," ",null," "]
[157,null,null,null,null,null,null,null,null,null,null,0,null," ",null," "]
[158,null,null,null,null,null,null,null,null,null,null,0,null," ",null," "]
[159,null,null,null,null,null,null,null,null,null,null,0,null," ",null," "]
[160,null,null,null,null,null,null,null,null,null,null,0,null," ",null," "]
[161,null,null,null,null,null,null,null,null,null,null,0,null," ",null," "]
[162,null,null,null,null,null,null,null,null,null,null,0,null," ",null," "]
[163,null,null,null,null,null,null,null,null,null,null,0,null," ",null," "]
[164,null,null,null,null,null,null,null,null,null,null,0,null," ",null," "]
[165,null,null,null,null,null,null,null,null,null,null,0,null," ",null," "]
[166,null,null,null,null,null,null,null,null,null,null,0,null," ",null," "]
[167,null,null,null,null,null,null,null,null,null,null,0,null," ",null," "]
[168,null,null,null,null,null,null,null,null,null,null,0,null," ",null," "]
[169,null,null,null,null,null,null,null,null,null,null,0,null," ",null," "]
[170,null,null,null,null,null,null,null,null,null,null,0,null," ",null," "]
[171,null,null,null,null,null,null,null,null,null,null,0,null," ",null," "]
[172,null,null,null,null,null,null,null,null,null,null,0,null," ",null," "]
[173,null,null,null,null,null,null,null,null,null,null,0,null," ",null," "]
[174,null,null,null,null,null,null,null,null,null,null,0,null," ",null," "]
[175,null,null,null,null,null,null,null,null,null,null,0,null," ",null," "]
[176,null,null,null,null,null,null,null,null,null,null,0,null," ",null," "]
[177,null,null,null,null,null,null,null,null,null,null,0,null," ",null," "]
[178,null,null,null,null,null,null,null,null,null,null,0,null," ",null," "]
[179,null,null,null,null,null,null,null,null,null,null,0,null," ",null," "]
[180,null,null,null,null,null,null,null,null,null,null,0,null," ",null," "]
[181,null,null,null,null,null,null,null,null,null,null,0,null," ",null," "]
[182,null,null,null,null,null,null,null,null,null,null,0,null," ",null," "]
[183,null,null,null,null,null,null,null,null,null,null,0,null," ",null," "]
[184,null,null,null,null,null,null,null,null,null,null,0,null," ",null," "]
[185,null,null,null,null,null,null,null,null,null,null,0,null," ",null," "]
[186,null,null,null,null,null,null,null,null,null,null,0,null," ",null," "]
[187,null,null,null,null,null,null,null,null,null,null,0,null," ",null," "]
[188,null,null,null,null,null,null,null,null,null,null,0,null," ",null," "]
[189,null,null,null,null,null,null,null,null,null,null,0,null," ",null," "]
[190,null,null,null,null,null,null,null,null,null,null,0,null," ",null," "]
[191,null,null,null,null,null,null,null,null,null,null,0,null," ",null," "]
[192,null,null,null,null,null,null,null,null,null,null,0,null," ",null," "]
[193,null,null,null,null,null,null,null,null,null,null,0,null," ",null," "]
[194,null,null,null,null,null,null,null,null,null,null,{"$f":"IF(F196 <$N$2,F196,\" \")","v":0},null,{"$f":"IF(F196 <$P$2,IF(F196 >=$N$2,F196,\" \"),\"\")","v":" "},null,{"$f":"IF(F196 <$R$2,IF(F196 >=$P$2,F196,\" \"),\"\")","v":" "}]
[195,null,null,null,null,null,null,null,null,null,null,0,null," ",null," "]
[196,null,null,null,null,null,null,null,null,null,null,0,null," ",null," "]
[197,null,null,null,null,null,null,null,null,null,null,0,null," ",null," "]
[198,null,null,null,null,null,null,null,null,null,null,0,null," ",null," "]
[199,null,null,null,null,null,null,null,null,null,null,0,null," ",null," "]
[200,null,null,null,null,null,null,null,null,null,null,0,null," ",null," "]
[201,null,null,null,null,null,null,null,null,null,null,0,null," ",null," "]
[202,null,null,null,null,null,null,null,null,null,null,0,null," ",null," "]
[203,null,null,null,null,null,null,null,null,null,null,0,null," ",null," "]
[204,null,null,null,null,null,null,null,null,null,null,0,null," ",null," "]
[205,null,null,null,null,null,null,null,null,null,null,0,null," ",null," "]
[206,null,null,null,null,null,null,null,null,null,null,0,null," ",null," "]
[207,null,null,null,null,null,null,null,null,null,null,0,null," ",null," "]
[208,null,null,null,null,null,null,null,null,null,null,0,null," ",null," "]
[209,null,null,null,null,null,null,null,null,null,null,0,null," ",null," "]
[210,null,null,null,null,null,null,null,null,null,null,0,null," ",null," "]
[211,null,null,null,null,null,null,null,null,null,null,0,null," ",null," "]
[212,null,null,null,null,null,null,null,null,null,null,0,null," ",null," "]
[213,null,null,null,null,null,null,null,null,null,null,0,null," ",null," "]
[214,null,null,null,null,null,null,null,null,null,null,0,null," ",null," "]
[215,null,null,null,null,null,null,null,null,null,null,0,null," ",null," "]
[216,null,null,null,null,null,null,null,null,null,null,0,null," ",null," "]
[217,null,null,null,null,null,null,null,null,null,null,0,null," ",null," "]
[218,null,null,null,null,null,null,null,null,null,null,0,null," ",null," "]
[219,null,null,null,null,null,null,null,null,null,null,0,null," ",null," "]
[220,null,null,null,null,null,null,null,null,null,null,0,null," ",null," "]
[221,null,null,null,null,null,null,null,null,null,null,0,null," ",null," "]
[222,null,null,null,null,null,null,null,null,null,null,0,null," ",null," "]
[223,null,null,null,null,null,null,null,null,null,null,0,null," ",null," "]
[224,null,null,null,null,null,null,null,null,null,null,0,null," ",null," "]
[225,null,null,null,null,null,null,null,null,null,null,0,null," ",null," "]
[226,null,null,null,null,null,null,null,null,null,null,0,null," ",null," "]
[227,null,null,null,null,null,null,null,null,null,null,0,null," ",null," "]
[228,null,null,null,null,null,null,null,null,null,null,0,null," ",null," "]
[229,null,null,null,null,null,null,null,null,null,null,0,null," ",null," "]
[230,null,null,null,null,null,null,null,null,null,null,0,null," ",null," "]
[231,null,null,null,null,null,null,null,null,null,null,0,null," ",null," "]
[232,null,null,null,null,null,null,null,null,null,null,0,null," ",null," "]
[233,null,null,null,null,null,null,null,null,null,null,0,null," ",null," "]
[234,null,null,null,null,null,null,null,null,null,null,0,null," ",null," "]
[235,null,null,null,null,null,null,null,null,null,null,0,null," ",null," "]
[236,null,null,null,null,null,null,null,null,null,null,0,null," ",null," "]
[237,null,null,null,null,null,null,null,null,null,null,0,null," ",null," "]
[238,null,null,null,null,null,null,null,null,null,null,0,null," ",null," "]
[239,null,null,null,null,null,null,null,null,null,null,0,null," ",null," "]
[240,null,null,null,null,null,null,null,null,null,null,0,null," ",null," "]
[241,null,null,null,null,null,null,null,null,null,null,0,null," ",null," "]
[242,null,null,null,null,null,null,null,null,null,null,0,null," ",null," "]
[243,null,null,null,null,null,null,null,null,null,null,0,null," ",null," "]
[244,null,null,null,null,null,null,null,null,null,null,0,null," ",null," "]
[245,null,null,null,null,null,null,null,null,null,null,0,null," ",null," "]
[246,null,null,null,null,null,null,null,null,null,null,0,null," ",null," "]
[247,null,null,null,null,null,null,null,null,null,null,0,null," ",null," "]
[248,null,null,null,null,null,null,null,null,null,null,0,null," ",null," "]
[249,null,null,null,null,null,null,null,null,null,null,0,null," ",null," "]
[250,null,null,null,null,null,null,null,null,null,null,0,null," ",null," "]
[251,null,null,null,null,null,null,null,null,null,null,0,null," ",null," "]
[252,null,null,null,null,null,null,null,null,null,null,0,null," ",null," "]
[253,null,null,null,null,null,null,null,null,null,null,0,null," ",null," "]
[254,null,null,null,null,null,null,null,null,null,null,0,null," ",null," "]
[255,null,null,null,null,null,null,null,null,null,null,0,null," ",null," "]
[256,null,null,null,null,null,null,null,null,null,null,0,null," ",null," "]
[257,null,null,null,null,null,null,null,null,null,null,0,null," ",null," "]
[258,null,null,null,null,null,null,null,null,null,null,{"$f":"IF(F260 <$N$2,F260,\" \")","v":0},null,{"$f":"IF(F260 <$P$2,IF(F260 >=$N$2,F260,\" \"),\"\")","v":" "},null,{"$f":"IF(F260 <$R$2,IF(F260 >=$P$2,F260,\" \"),\"\")","v":" "}]
[259,null,null,null,null,null,null,null,null,null,null,0,null," ",null," "]
[260,null,null,null,null,null,null,null,null,null,null,0,null," ",null," "]
[261,null,null,null,null,null,null,null,null,null,null,0,null," ",null," "]
[262,null,null,null,null,null,null,null,null,null,null,0,null," ",null," "]
[263,null,null,null,null,null,null,null,null,null,null,0,null," ",null," "]
[264,null,null,null,null,null,null,null,null,null,null,0,null," ",null," "]
[265,null,null,null,null,null,null,null,null,null,null,0,null," ",null," "]
[266,null,null,null,null,null,null,null,null,null,null,0,null," ",null," "]
[267,null,null,null,null,null,null,null,null,null,null,0,null," ",null," "]
[268,null,null,null,null,null,null,null,null,null,null,0,null," ",null," "]
[269,null,null,null,null,null,null,null,null,null,null,0,null," ",null," "]
[270,null,null,null,null,null,null,null,null,null,null,0,null," ",null," "]
[271,null,null,null,null,null,null,null,null,null,null,0,null," ",null," "]
[272,null,null,null,null,null,null,null,null,null,null,0,null," ",null," "]
[273,null,null,null,null,null,null,null,null,null,null,0,null," ",null," "]
[274,null,null,null,null,null,null,null,null,null,null,0,null," ",null," "]
[275,null,null,null,null,null,null,null,null,null,null,0,null," ",null," "]
[276,null,null,null,null,null,null,null,null,null,null,0,null," ",null," "]
[277,null,null,null,null,null,null,null,null,null,null,0,null," ",null," "]
[278,null,null,null,null,null,null,null,null,null,null,0,null," ",null," "]
[279,null,null,null,null,null,null,null,null,null,null,0,null," ",null," "]
[280,null,null,null,null,null,null,null,null,null,null,0,null," ",null," "]
[281,null,null,null,null,null,null,null,null,null,null,0,null," ",null," "]
[282,null,null,null,null,null,null,null,null,null,null,0,null," ",null," "]
[283,null,null,null,null,null,null,null,null,null,null,0,null," ",null," "]
[284,null,null,null,null,null,null,null,null,null,null,0,null," ",null," "]
[285,null,null,null,null,null,null,null,null,null,null,0,null," ",null," "]
[286,null,null,null,null,null,null,null,null,null,null,0,null," ",null," "]
[287,null,null,null,null,null,null,null,null,null,null,0,null," ",null," "]
[288,null,null,null,null,null,null,null,null,null,null,0,null," ",null," "]
[289,null,null,null,null,null,null,null,null,null,null,0,null," ",null," "]
[290,null,null,null,null,null,null,null,null,null,null,0,null," ",null," "]
[291,null,null,null,null,null,null,null,null,null,null,0,null," ",null," "]
[292,null,null,null,null,null,null,null,null,null,null,0,null," ",null," "]
[293,null,null,null,null,null,null,null,null,null,null,0,null," ",null," "]
[294,null,null,null,null,null,null,null,null,null,null,0,null," ",null," "]
[295,null,null,null,null,null,null,null,null,null,null,0,null," ",null," "]
[296,null,null,null,null,null,null,null,null,null,null,0,null," ",null," "]
[297,null,null,null,null,null,null,null,null,null,null,0,null," ",null," "]
[298,null,null,null,null,null,null,null,null,null,null,0,null," ",null," "]
[299,null,null,null,null,null,null,null,null,null,null,0,null," ",null," "]
[300,null,null,null,null,null,null,null,null,null,null,0,null," ",null," "]
[301,null,null,null,null,null,null,null,null,null,null,0,null," ",null," "]
[302,null,null,null,null,null,null,null,null,null,null,0,null," ",null," "]
[303,null,null,null,null,null,null,null,null,null,null,0,null," ",null," "]
[304,null,null,null,null,null,null,null,null,null,null,0,null," ",null," "]
[305,null,null,null,null,null,null,null,null,null,null,0,null," ",null," "]
[306,null,null,null,null,null,null,null,null,null,null,0,null," ",null," "]
[307,null,null,null,null,null,null,null,null,null,null,0,null," ",null," "]
[308,null,null,null,null,null,null,null,null,null,null,0,null," ",null," "]
[309,null,null,null,null,null,null,null,null,null,null,0,null," ",null," "]
[310,null,null,null,null,null,null,null,null,null,null,0,null," ",null," "]
[311,null,null,null,null,null,null,null,null,null,null,0,null," ",null," "]
[312,null,null,null,null,null,null,null,null,null,null,0,null," ",null," "]
[313,null,null,null,null,null,null,null,null,null,null,0,null," ",null," "]
[314,null,null,null,null,null,null,null,null,null,null,0,null," ",null," "]
[315,null,null,null,null,null,null,null,null,null,null,0,null," ",null," "]
[316,null,null,null,null,null,null,null,null,null,null,0,null," ",null," "]
[317,null,null,null,null,null,null,null,null,null,null,0,null," ",null," "]
[318,null,null,null,null,null,null,null,null,null,null,0,null," ",null," "]
[319,null,null,null,null,null,null,null,null,null,null,0,null," ",null," "]
[320,null,null,null,null,null,null,null,null,null,null,0,null," ",null," "]
[321,null,null,null,null,null,null,null,null,null,null,0,null," ",null," "]
[322,null,null,null,null,null,null,null,null,null,null,{"$f":"IF(F324 <$N$2,F324,\" \")","v":0},null,{"$f":"IF(F324 <$P$2,IF(F324 >=$N$2,F324,\" \"),\"\")","v":" "},null,{"$f":"IF(F324 <$R$2,IF(F324 >=$P$2,F324,\" \"),\"\")","v":" "}]
[323,null,null,null,null,null,null,null,null,null,null,0,null," ",null," "]
[324,null,null,null,null,null,null,null,null,null,null,0,null," ",null," "]
[325,null,null,null,null,null,null,null,null,null,null,0,null," ",null," "]
[326,null,null,null,null,null,null,null,null,null,null,0,null," ",null," "]
[327,null,null,null,null,null,null,null,null,null,null,0,null," ",null," "]
[328,null,null,null,null,null,null,null,null,null,null,0,null," ",null," "]
[329,null,null,null,null,null,null,null,null,null,null,0,null," ",null," "]
[330,null,null,null,null,null,null,null,null,null,null,0,null," ",null," "]
[331,null,null,null,null,null,null,null,null,null,null,0,null," ",null," "]
[332,null,null,null,null,null,null,null,null,null,null,0,null," ",null," "]
[333,null,null,null,null,null,null,null,null,null,null,0,null," ",null," "]
[334,null,null,null,null,null,null,null,null,null,null,0,null," ",null," "]
[335,null,null,null,null,null,null,null,null,null,null,0,null," ",null," "]
[336,null,null,null,null,null,null,null,null,null,null,0,null," ",null," "]
[337,null,null,null,null,null,null,null,null,null,null,0,null," ",null," "]
[338,null,null,null,null,null,null,null,null,null,null,0,null," ",null," "]
[339,null,null,null,null,null,null,null,null,null,null,0,null," ",null," "]
[340,null,null,null,null,null,null,null,null,null,null,0,null," ",null," "]
[341,null,null,null,null,null,null,null,null,null,null,0,null," ",null," "]
[342,null,null,null,null,null,null,null,null,null,null,0,null," ",null," "]
[343,null,null,null,null,null,null,null,null,null,null,0,null," ",null," "]
[344,null,null,null,null,null,null,null,null,null,null,0,null," ",null," "]
[345,null,null,null,null,null,null,null,null,null,null,0,null," ",null," "]
[346,null,null,null,null,null,null,null,null,null,null,0,null," ",null," "]
[347,null,null,null,null,null,null,null,null,null,null,0,null," ",null," "]
[348,null,null,null,null,null,null,null,null,null,null,0,null," ",null," "]
[349,null,null,null,null,null,null,null,null,null,null,0,null," ",null," "]
[350,null,null,null,null,null,null,null,null,null,null,0,null," ",null," "]

{"sheet":"select draw","index":2,"n_rows":352,"n_cols":20,"rows_kept":352,"cut":false,"hidden":false,"merged":[]}
["Pee Wee",null,null,null,null,null,null,"# entries",null,"fee",null,"1D",null,"2D",null,"3D"]
["Draw #","   Name",null,"   Horse",null,"   time",null,{"$f":"350 - COUNTBLANK('OPEN DRAW'!B3:B352)","v":40},null,{"$f":"SUM(#REF!)","v":{"$error":"#REF!"}},null,{"$f":"MIN(F3:F352)","v":14.167999999999999},null,{"$f":"SUM(L2+1)","v":15.167999999999999},null,{"$f":"SUM(N2+1)","v":16.167999999999999},null,100,null,{"$f":"COUNTA(B3:B150)","v":13}]
[1,"Dawn Vandersteen",null,"Running Flit Bar",null,14.167999999999999,null,null,null,null,null,{"$f":"IF(F3 <$N$2,F3,\" \")","v":14.167999999999999},null,{"$f":"IF(F3 <$P$2,IF(F3 >=$N$2,F3,\" \"),\"\")","v":" "},null,{"$f":"IF(F3 <$R$2,IF(F3 >=$P$2,F3,\" \"),\"\")","v":" "}]
[2,"Donna McMullan",null,"Boons Sweet Tea",null,14.365,null,null,null,null,null,14.365,null," ",null," "]
[3,"Jamie McDonald",null,"Okie Cash",null,14.845000000000001,null,null,null,null,null,14.845000000000001,null," ",null," "]
[4,"Adele Sobey",null,"Running Mega Jac",null,15.343,null,null,null,null,null," ",null,15.343,null," "]
[5,"Jamie McDonald",null,"Cosmic",null,15.37,null,null,null,null,null," ",null,15.37,null," "]
[6,"Debbie Champagne",null,"Wilson",null,15.516,null,null,null,null,null," ",null,15.516,null," "]
[7,"Dianne McCaw",null,"RR Pass Jae Wiz",null,15.6,null,null,null,null,null," ",null,15.6,null," "]
[8,"Marla Grad",null,"Ooh Whata Frenchman",null,15.744,null,null,null,null,null," ",null,15.744,null," "]
[9,"Dianne McCaw",null,"Dingo",null,15.819000000000001,null,null,null,null,null," ",null,15.819000000000001,null," "]
[10,"Janeen Rivard",null,"RS Perkflit",null,16.542999999999999,null,null,null,null,null," ",null,"",null,16.542999999999999]
[11,"Gail McCauley",null,"Silver City Girl",null,17.629000000000001,null,null,null,null,null," ",null,"",null,17.629000000000001]
[12,"Jeannine Guyot",null,"This Jack Can Shine",null,"nt",null,null,null,null,null," ",null,"",null,""]
[13,"melanie drier",null,"Skipper King Gal",null,"nt",null,null,null,null,null," ",null,"",null,""]
[14,null,null,null,null,null,null,null,null,null,null,0,null," ",null," "]
[15,null,null,null,null,null,null,null,null,null,null,0,null," ",null," "]
[16,null,null,null,null,null,null,null,null,null,null,0,null," ",null," "]
[17,null,null,null,null,null,null,null,null,null,null,0,null," ",null," "]
[18,null,null,null,null,null,null,null,null,null,null,0,null," ",null," "]
[19,null,null,null,null,null,null,null,null,null,null,0,null," ",null," "]
[20,null,null,null,null,null,null,null,null,null,null,0,null," ",null," "]
[21,null,null,null,null,null,null,null,null,null,null,0,null," ",null," "]
[22,null,null,null,null,null,null,null,null,null,null,0,null," ",null," "]
[23,null,null,null,null,null,null,null,null,null,null,0,null," ",null," "]
[24,null,null,null,null,null,null,null,null,null,null,0,null," ",null," "]
[25,null,null,null,null,null,null,null,null,null,null,0,null," ",null," "]
[26,null,null,null,null,null,null,null,null,null,null,0,null," ",null," "]
[27,null,null,null,null,null,null,null,null,null,null,0,null," ",null," "]
[28,null,null,null,null,null,null,null,null,null,null,0,null," ",null," "]
[29,null,null,null,null,null,null,null,null,null,null,0,null," ",null," "]
[30,null,null,null,null,null,null,null,null,null,null,0,null," ",null," "]
[31,null,null,null,null,null,null,null,null,null,null,0,null," ",null," "]
[32,null,null,null,null,null,null,null,null,null,null,0,null," ",null," "]
[33,null,null,null,null,null,null,null,null,null,null,0,null," ",null," "]
[34,null,null,null,null,null,null,null,null,null,null,0,null," ",null," "]
[35,null,null,null,null,null,null,null,null,null,null,0,null," ",null," "]
[36,null,null,null,null,null,null,null,null,null,null,0,null," ",null," "]
[37,null,null,null,null,null,null,null,null,null,null,0,null," ",null," "]
[38,null,null,null,null,null,null,null,null,null,null,0,null," ",null," "]
[39,null,null,null,null,null,null,null,null,null,null,0,null," ",null," "]
[40,null,null,null,null,null,null,null,null,null,null,0,null," ",null," "]
[41,null,null,null,null,null,null,null,null,null,null,0,null," ",null," "]
[42,null,null,null,null,null,null,null,null,null,null,0,null," ",null," "]
[43,null,null,null,null,null,null,null,null,null,null,0,null," ",null," "]
[44,null,null,null,null,null,null,null,null,null,null,0,null," ",null," "]
[45,null,null,null,null,null,null,null,null,null,null,0,null," ",null," "]
[46,null,null,null,null,null,null,null,null,null,null,0,null," ",null," "]
[47,null,null,null,null,null,null,null,null,null,null,0,null," ",null," "]
[48,null,null,null,null,null,null,null,null,null,null,0,null," ",null," "]
[49,null,null,null,null,null,null,null,null,null,null,0,null," ",null," "]
[50,null,null,null,null,null,null,null,null,null,null,0,null," ",null," "]
[51,null,null,null,null,null,null,null,null,null,null,0,null," ",null," "]
[52,null,null,null,null,null,null,null,null,null,null,0,null," ",null," "]
[53,null,null,null,null,null,null,null,null,null,null,0,null," ",null," "]
[54,null,null,null,null,null,null,null,null,null,null,0,null," ",null," "]
[55,null,null,null,null,null,null,null,null,null,null,0,null," ",null," "]
[56,null,null,null,null,null,null,null,null,null,null,0,null," ",null," "]
[57,null,null,null,null,null,null,null,null,null,null,0,null," ",null," "]
[58,null,null,null,null,null,null,null,null,null,null,0,null," ",null," "]
[59,null,null,null,null,null,null,null,null,null,null,0,null," ",null," "]
[60,null,null,null,null,null,null,null,null,null,null,0,null," ",null," "]
[61,null,null,null,null,null,null,null,null,null,null,0,null," ",null," "]
[62,null,null,null,null,null,null,null,null,null,null,0,null," ",null," "]
[63,null,null,null,null,null,null,null,null,null,null,0,null," ",null," "]
[64,null,null,null,null,null,null,null,null,null,null,0,null," ",null," "]
[65,null,null,null,null,null,null,null,null,null,null,{"$f":"IF(F67 <$N$2,F67,\" \")","v":0},null,{"$f":"IF(F67 <$P$2,IF(F67 >=$N$2,F67,\" \"),\"\")","v":" "},null,{"$f":"IF(F67 <$R$2,IF(F67 >=$P$2,F67,\" \"),\"\")","v":" "}]
[66,null,null,null,null,null,null,null,null,null,null,0,null," ",null," "]
[67,null,null,null,null,null,null,null,null,null,null,0,null," ",null," "]
[68,null,null,null,null,null,null,null,null,null,null,0,null," ",null," "]
[69,null,null,null,null,null,null,null,null,null,null,0,null," ",null," "]
[70,null,null,null,null,null,null,null,null,null,null,0,null," ",null," "]
[71,null,null,null,null,null,null,null,null,null,null,0,null," ",null," "]
[72,null,null,null,null,null,null,null,null,null,null,0]
[73,null,null,null,null,null,null,null,null,null,null,0,null,{"$f":"IF(F75 <$P$2,IF(F75 >=$N$2,F75,\" \"),\"\")","v":" "},null,{"$f":"IF(F75 <$R$2,IF(F75 >=$P$2,F75,\" \"),\"\")","v":" "}]
[74,null,null,null,null,null,null,null,null,null,null,0,null," ",null," "]
[75,null,null,null,null,null,null,null,null,null,null,0,null," ",null," "]
[76,null,null,null,null,null,null,null,null,null,null,0,null," ",null," "]
[77,null,null,null,null,null,null,null,null,null,null,0,null," ",null," "]
[78,null,null,null,null,null,null,null,null,null,null,0,null," ",null," "]
[79,null,null,null,null,null,null,null,null,null,null,0,null," ",null," "]
[80,null,null,null,null,null,null,null,null,null,null,0,null," ",null," "]
[81,null,null,null,null,null,null,null,null,null,null,0,null," ",null," "]
[82,null,null,null,null,null,null,null,null,null,null,0,null," ",null," "]
[83,null,null,null,null,null,null,null,null,null,null,0,null," ",null," "]
[84,null,null,null,null,null,null,null,null,null,null,0,null," ",null," "]
[85,null,null,null,null,null,null,null,null,null,null,0,null," ",null," "]
[86,null,null,null,null,null,null,null,null,null,null,0,null," ",null," "]
[87,null,null,null,null,null,null,null,null,null,null,0,null," ",null," "]
[88,null,null,null,null,null,null,null,null,null,null,0,null," ",null," "]
[89,null,null,null,null,null,null,null,null,null,null,0,null," ",null," "]
[90,null,null,null,null,null,null,null,null,null,null,0,null," ",null," "]
[91,null,null,null,null,null,null,null,null,null,null,0,null," ",null," "]
[92,null,null,null,null,null,null,null,null,null,null,0,null," ",null," "]
[93,null,null,null,null,null,null,null,null,null,null,0,null," ",null," "]
[94,null,null,null,null,null,null,null,null,null,null,0,null," ",null," "]
[95,null,null,null,null,null,null,null,null,null,null,0,null," ",null," "]
[96,null,null,null,null,null,null,null,null,null,null,0,null," ",null," "]
[97,null,null,null,null,null,null,null,null,null,null,0,null," ",null," "]
[98,null,null,null,null,null,null,null,null,null,null,0,null," ",null," "]
[99,null,null,null,null,null,null,null,null,null,null,0,null," ",null," "]
[100,null,null,null,null,null,null,null,null,null,null,0,null," ",null," "]
[101,null,null,null,null,null,null,null,null,null,null,0,null," ",null," "]
[102,null,null,null,null,null,null,null,null,null,null,0,null," ",null," "]
[103,null,null,null,null,null,null,null,null,null,null,0,null," ",null," "]
[104,null,null,null,null,null,null,null,null,null,null,0,null," ",null," "]
[105,null,null,null,null,null,null,null,null,null,null,0,null," ",null," "]
[106,null,null,null,null,null,null,null,null,null,null,0,null," ",null," "]
[107,null,null,null,null,null,null,null,null,null,null,0,null," ",null," "]
[108,null,null,null,null,null,null,null,null,null,null,0,null," ",null," "]
[109,null,null,null,null,null,null,null,null,null,null,0,null," ",null," "]
[110,null,null,null,null,null,null,null,null,null,null,0,null," ",null," "]
[111,null,null,null,null,null,null,null,null,null,null,0,null," ",null," "]
[112,null,null,null,null,null,null,null,null,null,null,0,null," ",null," "]
[113,null,null,null,null,null,null,null,null,null,null,0,null," ",null," "]
[114,null,null,null,null,null,null,null,null,null,null,0,null," ",null," "]
[115,null,null,null,null,null,null,null,null,null,null,0,null," ",null," "]
[116,null,null,null,null,null,null,null,null,null,null,0,null," ",null," "]
[117,null,null,null,null,null,null,null,null,null,null,0,null," ",null," "]
[118,null,null,null,null,null,null,null,null,null,null,0,null," ",null," "]
[119,null,null,null,null,null,null,null,null,null,null,0,null," ",null," "]
[120,null,null,null,null,null,null,null,null,null,null,0,null," ",null," "]
[121,null,null,null,null,null,null,null,null,null,null,0,null," ",null," "]
[122,null,null,null,null,null,null,null,null,null,null,0,null," ",null," "]
[123,null,null,null,null,null,null,null,null,null,null,0,null," ",null," "]
[124,null,null,null,null,null,null,null,null,null,null,0,null," ",null," "]
[125,null,null,null,null,null,null,null,null,null,null,0,null," ",null," "]
[126,null,null,null,null,null,null,null,null,null,null,0,null," ",null," "]
[127,null,null,null,null,null,null,null,null,null,null,0,null," ",null," "]
[128,null,null,null,null,null,null,null,null,null,null,0,null," ",null," "]
[129,null,null,null,null,null,null,null,null,null,null,{"$f":"IF(F131 <$N$2,F131,\" \")","v":0},null," ",null," "]
[130,null,null,null,null,null,null,null,null,null,null,0,null," ",null," "]
[131,null,null,null,null,null,null,null,null,null,null,0,null," ",null," "]
[132,null,null,null,null,null,null,null,null,null,null,0,null," ",null," "]
[133,null,null,null,null,null,null,null,null,null,null,0,null," ",null," "]
[134,null,null,null,null,null,null,null,null,null,null,0,null," ",null," "]
[135,null,null,null,null,null,null,null,null,null,null,0,null," ",null," "]
[136,null,null,null,null,null,null,null,null,null,null,0,null," ",null," "]
[137,null,null,null,null,null,null,null,null,null,null,0,null,{"$f":"IF(F139 <$P$2,IF(F139 >=$N$2,F139,\" \"),\"\")","v":" "},null,{"$f":"IF(F139 <$R$2,IF(F139 >=$P$2,F139,\" \"),\"\")","v":" "}]
[138,null,null,null,null,null,null,null,null,null,null,0,null," ",null," "]
[139,null,null,null,null,null,null,null,null,null,null,0,null," ",null," "]
[140,null,null,null,null,null,null,null,null,null,null,0,null," ",null," "]
[141,null,null,null,null,null,null,null,null,null,null,0,null," ",null," "]
[142,null,null,null,null,null,null,null,null,null,null,0,null," ",null," "]
[143,null,null,null,null,null,null,null,null,null,null,0,null," ",null," "]
[144,null,null,null,null,null,null,null,null,null,null,0,null," ",null," "]
[145,null,null,null,null,null,null,null,null,null,null,0,null," ",null," "]
[146,null,null,null,null,null,null,null,null,null,null,0,null," ",null," "]
[147,null,null,null,null,null,null,null,null,null,null,0,null," ",null," "]
[148,null,null,null,null,null,null,null,null,null,null,0,null," ",null," "]
[149,null,null,null,null,null,null,null,null,null,null,0,null," ",null," "]
[150,null,null,null,null,null,null,null,null,null,null,0,null," ",null," "]
[151,null,null,null,null,null,null,null,null,null,null,0,null," ",null," "]
[152,null,null,null,null,null,null,null,null,null,null,0,null," ",null," "]
[153,null,null,null,null,null,null,null,null,null,null,0,null," ",null," "]
[154,null,null,null,null,null,null,null,null,null,null,0,null," ",null," "]
[155,null,null,null,null,null,null,null,null,null,null,0,null," ",null," "]
[156,null,null,null,null,null,null,null,null,null,null,0,null," ",null," "]
[157,null,null,null,null,null,null,null,null,null,null,0,null," ",null," "]
[158,null,null,null,null,null,null,null,null,null,null,0,null," ",null," "]
[159,null,null,null,null,null,null,null,null,null,null,0,null," ",null," "]
[160,null,null,null,null,null,null,null,null,null,null,0,null," ",null," "]
[161,null,null,null,null,null,null,null,null,null,null,0,null," ",null," "]
[162,null,null,null,null,null,null,null,null,null,null,0,null," ",null," "]
[163,null,null,null,null,null,null,null,null,null,null,0,null," ",null," "]
[164,null,null,null,null,null,null,null,null,null,null,0,null," ",null," "]
[165,null,null,null,null,null,null,null,null,null,null,0,null," ",null," "]
[166,null,null,null,null,null,null,null,null,null,null,0,null," ",null," "]
[167,null,null,null,null,null,null,null,null,null,null,0,null," ",null," "]
[168,null,null,null,null,null,null,null,null,null,null,0,null," ",null," "]
[169,null,null,null,null,null,null,null,null,null,null,0,null," ",null," "]
[170,null,null,null,null,null,null,null,null,null,null,0,null," ",null," "]
[171,null,null,null,null,null,null,null,null,null,null,0,null," ",null," "]
[172,null,null,null,null,null,null,null,null,null,null,0,null," ",null," "]
[173,null,null,null,null,null,null,null,null,null,null,0,null," ",null," "]
[174,null,null,null,null,null,null,null,null,null,null,0,null," ",null," "]
[175,null,null,null,null,null,null,null,null,null,null,0,null," ",null," "]
[176,null,null,null,null,null,null,null,null,null,null,0,null," ",null," "]
[177,null,null,null,null,null,null,null,null,null,null,0,null," ",null," "]
[178,null,null,null,null,null,null,null,null,null,null,0,null," ",null," "]
[179,null,null,null,null,null,null,null,null,null,null,0,null," ",null," "]
[180,null,null,null,null,null,null,null,null,null,null,0,null," ",null," "]
[181,null,null,null,null,null,null,null,null,null,null,0,null," ",null," "]
[182,null,null,null,null,null,null,null,null,null,null,0,null," ",null," "]
[183,null,null,null,null,null,null,null,null,null,null,0,null," ",null," "]
[184,null,null,null,null,null,null,null,null,null,null,0,null," ",null," "]
[185,null,null,null,null,null,null,null,null,null,null,0,null," ",null," "]
[186,null,null,null,null,null,null,null,null,null,null,0,null," ",null," "]
[187,null,null,null,null,null,null,null,null,null,null,0,null," ",null," "]
[188,null,null,null,null,null,null,null,null,null,null,0,null," ",null," "]
[189,null,null,null,null,null,null,null,null,null,null,0,null," ",null," "]
[190,null,null,null,null,null,null,null,null,null,null,0,null," ",null," "]
[191,null,null,null,null,null,null,null,null,null,null,0,null," ",null," "]
[192,null,null,null,null,null,null,null,null,null,null,0,null," ",null," "]
[193,null,null,null,null,null,null,null,null,null,null,{"$f":"IF(F195 <$N$2,F195,\" \")","v":0},null," ",null," "]
[194,null,null,null,null,null,null,null,null,null,null,0,null," ",null," "]
[195,null,null,null,null,null,null,null,null,null,null,0,null," ",null," "]
[196,null,null,null,null,null,null,null,null,null,null,0,null," ",null," "]
[197,null,null,null,null,null,null,null,null,null,null,0,null," ",null," "]
[198,null,null,null,null,null,null,null,null,null,null,0,null," ",null," "]
[199,null,null,null,null,null,null,null,null,null,null,0,null," ",null," "]
[200,null,null,null,null,null,null,null,null,null,null,0,null," ",null," "]
[201,null,null,null,null,null,null,null,null,null,null,0,null,{"$f":"IF(F203 <$P$2,IF(F203 >=$N$2,F203,\" \"),\"\")","v":" "},null,{"$f":"IF(F203 <$R$2,IF(F203 >=$P$2,F203,\" \"),\"\")","v":" "}]
[202,null,null,null,null,null,null,null,null,null,null,0,null," ",null," "]
[203,null,null,null,null,null,null,null,null,null,null,0,null," ",null," "]
[204,null,null,null,null,null,null,null,null,null,null,0,null," ",null," "]
[205,null,null,null,null,null,null,null,null,null,null,0,null," ",null," "]
[206,null,null,null,null,null,null,null,null,null,null,0,null," ",null," "]
[207,null,null,null,null,null,null,null,null,null,null,0,null," ",null," "]
[208,null,null,null,null,null,null,null,null,null,null,0,null," ",null," "]
[209,null,null,null,null,null,null,null,null,null,null,0,null," ",null," "]
[210,null,null,null,null,null,null,null,null,null,null,0,null," ",null," "]
[211,null,null,null,null,null,null,null,null,null,null,0,null," ",null," "]
[212,null,null,null,null,null,null,null,null,null,null,0,null," ",null," "]
[213,null,null,null,null,null,null,null,null,null,null,0,null," ",null," "]
[214,null,null,null,null,null,null,null,null,null,null,0,null," ",null," "]
[215,null,null,null,null,null,null,null,null,null,null,0,null," ",null," "]
[216,null,null,null,null,null,null,null,null,null,null,0,null," ",null," "]
[217,null,null,null,null,null,null,null,null,null,null,0,null," ",null," "]
[218,null,null,null,null,null,null,null,null,null,null,0,null," ",null," "]
[219,null,null,null,null,null,null,null,null,null,null,0,null," ",null," "]
[220,null,null,null,null,null,null,null,null,null,null,0,null," ",null," "]
[221,null,null,null,null,null,null,null,null,null,null,0,null," ",null," "]
[222,null,null,null,null,null,null,null,null,null,null,0,null," ",null," "]
[223,null,null,null,null,null,null,null,null,null,null,0,null," ",null," "]
[224,null,null,null,null,null,null,null,null,null,null,0,null," ",null," "]
[225,null,null,null,null,null,null,null,null,null,null,0,null," ",null," "]
[226,null,null,null,null,null,null,null,null,null,null,0,null," ",null," "]
[227,null,null,null,null,null,null,null,null,null,null,0,null," ",null," "]
[228,null,null,null,null,null,null,null,null,null,null,0,null," ",null," "]
[229,null,null,null,null,null,null,null,null,null,null,0,null," ",null," "]
[230,null,null,null,null,null,null,null,null,null,null,0,null," ",null," "]
[231,null,null,null,null,null,null,null,null,null,null,0,null," ",null," "]
[232,null,null,null,null,null,null,null,null,null,null,0,null," ",null," "]
[233,null,null,null,null,null,null,null,null,null,null,0,null," ",null," "]
[234,null,null,null,null,null,null,null,null,null,null,0,null," ",null," "]
[235,null,null,null,null,null,null,null,null,null,null,0,null," ",null," "]
[236,null,null,null,null,null,null,null,null,null,null,0,null," ",null," "]
[237,null,null,null,null,null,null,null,null,null,null,0,null," ",null," "]
[238,null,null,null,null,null,null,null,null,null,null,0,null," ",null," "]
[239,null,null,null,null,null,null,null,null,null,null,0,null," ",null," "]
[240,null,null,null,null,null,null,null,null,null,null,0,null," ",null," "]
[241,null,null,null,null,null,null,null,null,null,null,0,null," ",null," "]
[242,null,null,null,null,null,null,null,null,null,null,0,null," ",null," "]
[243,null,null,null,null,null,null,null,null,null,null,0,null," ",null," "]
[244,null,null,null,null,null,null,null,null,null,null,0,null," ",null," "]
[245,null,null,null,null,null,null,null,null,null,null,0,null," ",null," "]
[246,null,null,null,null,null,null,null,null,null,null,0,null," ",null," "]
[247,null,null,null,null,null,null,null,null,null,null,0,null," ",null," "]
[248,null,null,null,null,null,null,null,null,null,null,0,null," ",null," "]
[249,null,null,null,null,null,null,null,null,null,null,0,null," ",null," "]
[250,null,null,null,null,null,null,null,null,null,null,0,null," ",null," "]
[251,null,null,null,null,null,null,null,null,null,null,0,null," ",null," "]
[252,null,null,null,null,null,null,null,null,null,null,0,null," ",null," "]
[253,null,null,null,null,null,null,null,null,null,null,0,null," ",null," "]
[254,null,null,null,null,null,null,null,null,null,null,0,null," ",null," "]
[255,null,null,null,null,null,null,null,null,null,null,0,null," ",null," "]
[256,null,null,null,null,null,null,null,null,null,null,0,null," ",null," "]
[257,null,null,null,null,null,null,null,null,null,null,{"$f":"IF(F259 <$N$2,F259,\" \")","v":0},null," ",null," "]
[258,null,null,null,null,null,null,null,null,null,null,0,null," ",null," "]
[259,null,null,null,null,null,null,null,null,null,null,0,null," ",null," "]
[260,null,null,null,null,null,null,null,null,null,null,0,null," ",null," "]
[261,null,null,null,null,null,null,null,null,null,null,0,null," ",null," "]
[262,null,null,null,null,null,null,null,null,null,null,0,null," ",null," "]
[263,null,null,null,null,null,null,null,null,null,null,0,null," ",null," "]
[264,null,null,null,null,null,null,null,null,null,null,0,null," ",null," "]
[265,null,null,null,null,null,null,null,null,null,null,0,null,{"$f":"IF(F267 <$P$2,IF(F267 >=$N$2,F267,\" \"),\"\")","v":" "},null,{"$f":"IF(F267 <$R$2,IF(F267 >=$P$2,F267,\" \"),\"\")","v":" "}]
[266,null,null,null,null,null,null,null,null,null,null,0,null," ",null," "]
[267,null,null,null,null,null,null,null,null,null,null,0,null," ",null," "]
[268,null,null,null,null,null,null,null,null,null,null,0,null," ",null," "]
[269,null,null,null,null,null,null,null,null,null,null,0,null," ",null," "]
[270,null,null,null,null,null,null,null,null,null,null,0,null," ",null," "]
[271,null,null,null,null,null,null,null,null,null,null,0,null," ",null," "]
[272,null,null,null,null,null,null,null,null,null,null,0,null," ",null," "]
[273,null,null,null,null,null,null,null,null,null,null,0,null," ",null," "]
[274,null,null,null,null,null,null,null,null,null,null,0,null," ",null," "]
[275,null,null,null,null,null,null,null,null,null,null,0,null," ",null," "]
[276,null,null,null,null,null,null,null,null,null,null,0,null," ",null," "]
[277,null,null,null,null,null,null,null,null,null,null,0,null," ",null," "]
[278,null,null,null,null,null,null,null,null,null,null,0,null," ",null," "]
[279,null,null,null,null,null,null,null,null,null,null,0,null," ",null," "]
[280,null,null,null,null,null,null,null,null,null,null,0,null," ",null," "]
[281,null,null,null,null,null,null,null,null,null,null,0,null," ",null," "]
[282,null,null,null,null,null,null,null,null,null,null,0,null," ",null," "]
[283,null,null,null,null,null,null,null,null,null,null,0,null," ",null," "]
[284,null,null,null,null,null,null,null,null,null,null,0,null," ",null," "]
[285,null,null,null,null,null,null,null,null,null,null,0,null," ",null," "]
[286,null,null,null,null,null,null,null,null,null,null,0,null," ",null," "]
[287,null,null,null,null,null,null,null,null,null,null,0,null," ",null," "]
[288,null,null,null,null,null,null,null,null,null,null,0,null," ",null," "]
[289,null,null,null,null,null,null,null,null,null,null,0,null," ",null," "]
[290,null,null,null,null,null,null,null,null,null,null,0,null," ",null," "]
[291,null,null,null,null,null,null,null,null,null,null,0,null," ",null," "]
[292,null,null,null,null,null,null,null,null,null,null,0,null," ",null," "]
[293,null,null,null,null,null,null,null,null,null,null,0,null," ",null," "]
[294,null,null,null,null,null,null,null,null,null,null,0,null," ",null," "]
[295,null,null,null,null,null,null,null,null,null,null,0,null," ",null," "]
[296,null,null,null,null,null,null,null,null,null,null,0,null," ",null," "]
[297,null,null,null,null,null,null,null,null,null,null,0,null," ",null," "]
[298,null,null,null,null,null,null,null,null,null,null,0,null," ",null," "]
[299,null,null,null,null,null,null,null,null,null,null,0,null," ",null," "]
[300,null,null,null,null,null,null,null,null,null,null,0,null," ",null," "]
[301,null,null,null,null,null,null,null,null,null,null,0,null," ",null," "]
[302,null,null,null,null,null,null,null,null,null,null,0,null," ",null," "]
[303,null,null,null,null,null,null,null,null,null,null,0,null," ",null," "]
[304,null,null,null,null,null,null,null,null,null,null,0,null," ",null," "]
[305,null,null,null,null,null,null,null,null,null,null,0,null," ",null," "]
[306,null,null,null,null,null,null,null,null,null,null,0,null," ",null," "]
[307,null,null,null,null,null,null,null,null,null,null,0,null," ",null," "]
[308,null,null,null,null,null,null,null,null,null,null,0,null," ",null," "]
[309,null,null,null,null,null,null,null,null,null,null,0,null," ",null," "]
[310,null,null,null,null,null,null,null,null,null,null,0,null," ",null," "]
[311,null,null,null,null,null,null,null,null,null,null,0,null," ",null," "]
[312,null,null,null,null,null,null,null,null,null,null,0,null," ",null," "]
[313,null,null,null,null,null,null,null,null,null,null,0,null," ",null," "]
[314,null,null,null,null,null,null,null,null,null,null,0,null," ",null," "]
[315,null,null,null,null,null,null,null,null,null,null,0,null," ",null," "]
[316,null,null,null,null,null,null,null,null,null,null,0,null," ",null," "]
[317,null,null,null,null,null,null,null,null,null,null,0,null," ",null," "]
[318,null,null,null,null,null,null,null,null,null,null,0,null," ",null," "]
[319,null,null,null,null,null,null,null,null,null,null,0,null," ",null," "]
[320,null,null,null,null,null,null,null,null,null,null,0,null," ",null," "]
[321,null,null,null,null,null,null,null,null,null,null,{"$f":"IF(F323 <$N$2,F323,\" \")","v":0},null," ",null," "]
[322,null,null,null,null,null,null,null,null,null,null,0,null," ",null," "]
[323,null,null,null,null,null,null,null,null,null,null,0,null," ",null," "]
[324,null,null,null,null,null,null,null,null,null,null,0,null," ",null," "]
[325,null,null,null,null,null,null,null,null,null,null,0,null," ",null," "]
[326,null,null,null,null,null,null,null,null,null,null,0,null," ",null," "]
[327,null,null,null,null,null,null,null,null,null,null,0,null," ",null," "]
[328,null,null,null,null,null,null,null,null,null,null,0,null," ",null," "]
[329,null,null,null,null,null,null,null,null,null,null,0,null,{"$f":"IF(F331 <$P$2,IF(F331 >=$N$2,F331,\" \"),\"\")","v":" "},null,{"$f":"IF(F331 <$R$2,IF(F331 >=$P$2,F331,\" \"),\"\")","v":" "}]
[330,null,null,null,null,null,null,null,null,null,null,0,null," ",null," "]
[331,null,null,null,null,null,null,null,null,null,null,0,null," ",null," "]
[332,null,null,null,null,null,null,null,null,null,null,0,null," ",null," "]
[333,null,null,null,null,null,null,null,null,null,null,0,null," ",null," "]
[334,null,null,null,null,null,null,null,null,null,null,0,null," ",null," "]
[335,null,null,null,null,null,null,null,null,null,null,0,null," ",null," "]
[336,null,null,null,null,null,null,null,null,null,null,0,null," ",null," "]
[337,null,null,null,null,null,null,null,null,null,null,0,null," ",null," "]
[338,null,null,null,null,null,null,null,null,null,null,0,null," ",null," "]
[339,null,null,null,null,null,null,null,null,null,null,0,null," ",null," "]
[340,null,null,null,null,null,null,null,null,null,null,0,null," ",null," "]
[341,null,null,null,null,null,null,null,null,null,null,0,null," ",null," "]
[342,null,null,null,null,null,null,null,null,null,null,0,null," ",null," "]
[343,null,null,null,null,null,null,null,null,null,null,0,null," ",null," "]
[344,null,null,null,null,null,null,null,null,null,null,0,null," ",null," "]
[345,null,null,null,null,null,null,null,null,null,null,0,null," ",null," "]
[346,null,null,null,null,null,null,null,null,null,null,0,null," ",null," "]
[347,null,null,null,null,null,null,null,null,null,null,0,null," ",null," "]
[348,null,null,null,null,null,null,null,null,null,null,0,null," ",null," "]
[349,null,null,null,null,null,null,null,null,null,null,0,null," ",null," "]
[350,null,null,null,null,null,null,null,null,null,null,0,null," ",null," "]